Cogmind - Beta 11 X4 @@@ ROGUE MODE // 2021.05.23 @ 21:09:59 Player: Linkies Suck Result: Heading to fleet! Performance ------------- Evolutions (9) 4500 Regions Visited (34) 6800 Robots Destroyed (502) 2510 Value Destroyed (24656) 24656 Prototype IDs (98) 1960 Alien Tech Used (15) 3000 Bonus (32886) 32886 TOTAL SCORE: 76312 Bonus ------- High Alert Combat Kills 2187 Follower Combat Kills 971 Network Hubs Disabled 200 Aligned with FarCom 300 Met Data Miner 300 Met Imprinter 300 Met R17 at Cetus 500 Found Hidden Lab 3000 Used Core Reset Matrix 3000 Scanned by Researcher 500 Pursued by Intercept 1000 Destroyed MAIN.C Guards 500 Met MAIN.C 5000 Destroyed MAIN.C Shell 5000 Destroyed MAIN.C 10000 Win 3000 Friendly Fire -2872 Cogmind --------- Core Integrity 1382/1600 Matter 423/425 Energy 98/100 System Corruption 84% Temperature Cool (0) Movement Core (50) Location To Fleet Rendezvous Parts ------- > --- POWER (2) -------- (None) > --- PROPULSION (4) --- Biometal Heavy Treads High-density Centrium Heavy Treads > --- UTILITY (13) ----- Advanced Heat Sink Advanced Heat Sink Spectral Analyzer > --- WEAPON (6) ------- (None) > --- INVENTORY (5) ---- Experimental Biometal Heavy Treads Experimental Energy Well (600) Matter Drive Peak State ------------ > --- POWER ------------ Improved Quantum Reactor > --- PROPULSION ------- Centrium Heavy Treads Biometal Heavy Treads > --- UTILITY ---------- High-capacity Storage Unit Improved Overload Regulator Medium Regenerative Plating Phase Armor Advanced Hacking Suite System Mapper Ghost Barrier Quantum Router Quantum Router Spacefold Activator > --- WEAPON ----------- Warp Cannon Core Cannon Heavy Machine Gun Sigix Broadsword > --- INVENTORY -------- Centrium Heavy Treads Experimental Energy Well Experimental Optical Array Experimental Utility Shielding Experimental Utility Shielding Experimental Shock Absorption System EM Dispersion Field Experimental Force Field Phase Redirector Long-range Tractor Beam Long-range Tractor Beam High-powered Transdimensional Reconstructor Core Regenerator Core Regenerator Integrity Redistributor Subatomic Replicator Matter Drive Heavy Machine Gun [Rating: 238] Favorites ----------- Power Heavy Antimatter Reactor Engine Reinforced Ion Engine Power Core Micro Fission Core Reactor Heavy Antimatter Reactor Propulsion Armored Treads Treads Armored Treads Leg Makeshift Leg Wheel Armored Huge Wheel Hover Unit Improved Antigrav System Utility High-capacity Storage Unit Device Kinecellerator Storage High-capacity Storage Unit Processor Advanced Targeting Computer Hackware Quantum Router Protection Medium Regenerative Plating Artifact Phase Redirector Weapon Flak Gun Energy Gun Gatling Laser Energy Cannon Warp Cannon Ballistic Gun Flak Gun Ballistic Cannon Heavy Flak Cannon Launcher Grenade Launcher Special Weapon Mining Laser Impact Weapon Flail Slashing Weapon Sigix Broadsword Piercing Weapon Makeshift Spear Build | -11 -10 -10 -9 -9 -9 -8 -8 -7 -7 -7 -7 -7 -6 -6 -6 -6 -6 -5 -5 -5 -5 -5 -5 -4 -4 -4 -4 -4 -3 -3 -3 -2 -1 -1 ------- Run | Scr Mat Min Mat Min Exi Min Mat Fac Low Low Zio Dee Pro Fac Low Low Dat Pro Fac Ext Cet Arc Hub Fac Was Fac Arm Lab Res Qua Sec Res Acc Com Slots Evolved 18 | . . . 2 . . . 2 2 . . . . . 2 . . . . 2 . . . . 2 . . . . 2 . . 2 2 . Power 1 | . . . . . . . . . . . . . . . . . . . . . . . . . . . . . . . . 1 . . Propulsion 2 | . . . . . . . 1 . . . . . . . . . . . 1 . . . . . . . . . . . . . . . Utility 11 | . . . . . . . 1 2 . . . . . 1 . . . . 1 . . . . 2 . . . . 2 . . . 2 . Weapon 4 | . . . 2 . . . . . . . . . . 1 . . . . . . . . . . . . . . . . . 1 . . Parts Attached 651 | 11 25 5 10 . 31 1 10 22 4 6 31 15 19 22 9 3 19 12 12 21 20 3 1 5 6 13 21 11 16 45 16 51 63 92 Power 40 | 2 1 1 . . 3 . 1 . 1 1 2 . . . . . 1 . 1 1 3 . . . . 2 1 1 . 2 1 1 8 6 Engine 8 | 2 1 1 . . 2 . 1 . 1 . . . . . . . . . . . . . . . . . . . . . . . . . Core 5 | . . . . . . . . . . 1 . . . . . . . . . 1 . . . . . 1 . 1 . 1 . . . . Reactor 27 | . . . . . 1 . . . . . 2 . . . . . 1 . 1 . 3 . . . . 1 1 . . 1 1 1 8 6 Propulsion 75 | 4 8 . 4 . 7 . 3 3 . . 4 . . 6 . 1 4 . 2 6 4 1 . . 2 . 1 . 1 1 . 4 3 6 Treads 58 | 2 5 . 4 . 5 . 3 3 . . 4 . . 2 . 1 . . 2 6 4 1 . . 2 . 1 . 1 1 . 4 1 6 Leg 10 | 2 3 . . . 2 . . . . . . . . . . . 3 . . . . . . . . . . . . . . . . . Wheel 5 | . . . . . . . . . . . . . . 4 . . 1 . . . . . . . . . . . . . . . . . Hover 2 | . . . . . . . . . . . . . . . . . . . . . . . . . . . . . . . . . 2 . Flight . | . . . . . . . . . . . . . . . . . . . . . . . . . . . . . . . . . . . Utility 312 | 3 6 . . . 6 . 5 9 3 2 16 5 14 8 5 1 4 10 3 10 3 2 1 5 2 5 11 7 11 27 13 28 33 54 Device 158 | 2 1 . . . 2 . . 3 2 1 10 1 11 4 3 1 1 7 3 5 . 1 . . 2 2 4 2 6 18 2 18 21 25 Storage 34 | . 5 . . . 3 . 2 1 . . 1 . . . . . . . . . . . . . . . . 1 . 1 2 3 6 9 Processor 18 | 1 . . . . . . 1 2 . . . . 1 1 2 . 1 . . . . . . . . . . . 1 1 1 . 4 2 Hackware 18 | . . . . . . . 1 . . . . . . 2 . . . . . 1 . . . 5 . . 5 . 1 . 1 2 . . Protection 69 | . . . . . 1 . 1 3 1 1 5 4 2 1 . . 2 3 . 4 3 1 1 . . 3 2 4 3 3 3 2 1 15 Artifact 15 | . . . . . . . . . . . . . . . . . . . . . . . . . . . . . . 4 4 3 1 3 Weapon 224 | 2 10 4 6 . 15 1 1 10 . 3 9 10 5 8 4 1 10 2 6 4 10 . . . 2 6 8 3 4 15 2 18 19 26 Energy Gun 19 | . . . . . . . . 2 . 1 1 . . . . . . . . . . . . . . . . 1 . . . 5 2 7 Energy Cannon 11 | . . . . . . . . . . . . . . . . . . . 1 . . . . . . . . 1 . 4 1 1 1 2 Ballistic Gun 119 | 2 6 2 5 . 5 1 . 5 . 1 7 4 2 6 2 1 5 1 4 4 10 . . . 1 6 6 1 4 7 . 11 8 2 Ballistic Cannon 26 | . . 1 . . 3 . 1 3 . . . . . . . . . . . . . . . . . . . . . . . . 5 13 Launcher 9 | . . 1 1 . 1 . . . . 1 1 1 . . . . . . . . . . . . . . 2 . . 1 . . . . Special Weapon 4 | . 4 . . . . . . . . . . . . . . . . . . . . . . . . . . . . . . . . . Impact Weapon 5 | . . . . . 4 . . . . . . . . . . . . . . . . . . . . . . . . 1 . . . . Slashing Weapon 12 | . . . . . 2 . . . . . . . . . . . 1 . . . . . . . . . . . . 2 1 1 3 2 Piercing Weapon 19 | . . . . . . . . . . . . 5 3 2 2 . 4 1 1 . . . . . 1 . . . . . . . . . Special Melee Weapon . | . . . . . . . . . . . . . . . . . . . . . . . . . . . . . . . . . . . Unidentified Prototypes 47 | . . . . . 1 . . . . . 6 2 . . . . . . 1 2 3 . . . . . 3 6 . 4 2 4 1 12 Corrupted Parts 11 | . . . . . 1 . . . . . . . . . . . . . . . . . . . . . . . . . . 2 . 8 System Corruption 65 | . . . . . 2 . . . . . . . . . . . . . . . . . . . . . . . . . . 7 . 56 Parts Lost 48 | . . . . . 4 . . . . . 3 . 1 2 . . 2 . . . 4 . . . . 1 1 1 1 . 1 6 12 9 Power 5 | . . . . . . . . . . . . . . . . . 1 . . . . . . . . . . . . . . 1 3 . Propulsion 7 | . . . . . 1 . . . . . . . . 1 . . 1 . . . 2 . . . . . . . . . . . 2 . Utility 20 | . . . . . . . . . . . 3 . 1 1 . . . . . . 1 . . . . 1 1 1 1 . . 2 2 6 Weapon 16 | . . . . . 3 . . . . . . . . . . . . . . . 1 . . . . . . . . . 1 3 5 3 Highest Loss Streak 9 | . . . . . 2 . . . . . 2 . 1 1 . . 2 . . . 2 . . . . 1 1 1 1 . 1 6 9 4 Average Slot Usage (%) 88 | . 99 100 100 100 88 100 92 98 100 100 84 94 91 90 93 92 94 92 90 98 84 88 88 88 89 88 88 83 88 85 82 80 70 72 Engine 2 | . 14 14 11 11 6 . 6 7 7 3 . . . . . . . . . . . . . . . . . . . . . . . . Reactor 4 | . . . . . 4 11 2 . . . 3 7 7 6 6 6 5 6 5 2 3 5 5 5 5 4 4 4 . . 3 5 4 7 Treads 15 | . 23 28 22 22 17 . 26 23 23 23 23 23 23 6 . 5 4 . 3 20 11 11 11 10 10 10 10 10 8 8 9 8 5 8 Device 10 | . 14 14 11 11 8 . . 5 14 12 14 6 7 5 20 20 14 14 22 16 7 5 5 1 9 10 4 2 6 4 4 3 9 13 Storage 7 | . 13 14 11 11 11 11 9 7 7 7 7 7 7 6 6 6 6 6 5 5 5 5 5 5 5 5 5 5 4 4 5 5 8 9 Processor 3 | . . . . . . . 4 8 7 7 7 2 . 3 13 13 11 6 5 5 5 5 5 5 5 5 5 1 2 . . . 8 4 Hackware 6 | . . . . . . . 2 1 . . . . . 12 . . . . . 4 5 5 5 26 21 18 30 24 21 23 27 28 21 5 Protection 6 | . . . . . 2 11 9 12 7 9 7 15 14 6 . . 6 10 5 6 10 17 16 7 5 7 1 10 14 11 8 . 1 6 Energy Gun 1 | . . . . . . . . 1 15 7 5 . . . . . . . . . . . . . . . . 1 . . . 2 1 . Ballistic Gun 18 | . 27 14 43 44 20 22 18 16 15 22 9 11 29 28 32 33 12 33 28 29 28 29 29 26 24 26 25 22 22 17 6 12 4 . Ballistic Cannon 2 | . . 13 . . 7 11 10 10 . . . . . . . . . . . . . . . . . . . . . . . . 1 11 Slashing Weapon 1 | . . . . . 2 11 4 . . . . . . . . . 3 . . . . . . . . . . . . . 3 3 3 1 Piercing Weapon 1 | . . . . . . . . . . . . 15 . 3 . . 16 . . . . . . . 1 . . . . . . . . . Naked Turns . | . . . . . . . . . . . . . . . . . . . . . . . . . . . . . . . . . . . Heaviest Build 178 | 7 93 55 55 55 91 39 62 72 76 76 100 100 90 91 92 92 93 96 96 93 112 112 112 95 105 112 106 110 102 145 138 150 134 178 Greatest Support 170 | 40 40 40 40 40 40 40 60 60 60 60 62 60 60 60 44 44 32 28 37 97 160 160 160 160 160 150 160 160 160 160 160 165 165 170 Greatest Overweight (x) 5 | . 2 1 1 1 2 . 1 1 1 1 1 1 1 5 2 3 3 3 3 3 1 . . . . . . . . . . . 1 1 Average Overweight (x) . | . 1 1 1 1 . . . . 1 1 . 1 1 2 1 2 2 3 2 . . . . . . . . . . . . . . . Largest Inventory Capacity 25 | 5 25 20 20 20 20 10 20 20 20 20 20 20 20 20 20 20 20 20 20 20 20 20 20 20 20 20 20 20 20 20 20 20 20 20 Average Capacity 18 | 5 19 20 20 20 11 10 14 20 20 20 20 20 20 20 20 20 20 20 20 20 20 20 20 20 20 20 20 20 20 20 20 20 20 19 Most Carried 20 | 5 20 20 20 20 20 10 13 20 20 20 20 20 20 20 20 20 20 20 20 20 20 20 20 19 20 20 20 20 18 20 20 20 20 20 Average Carried 17 | 1 16 19 18 19 10 10 10 16 19 19 19 19 19 19 19 19 17 19 19 19 19 19 20 18 17 19 18 18 12 18 19 19 16 16 Final Capacity 20 | 5 20 20 20 20 10 10 20 20 20 20 20 20 20 20 20 20 20 20 20 20 20 20 20 20 20 20 20 20 20 20 20 20 20 5 Final Carried 20 | 5 20 20 19 20 10 10 13 20 20 20 20 20 18 20 20 20 19 20 20 20 20 20 20 18 20 20 20 19 12 20 20 20 11 5 Class Distribution -------------------- 22% | Scavenger-Tank 14% | Gunner 11% | Scavenger-Gunner 11% | Mutant 10% | Wizard-Mutant 9% | Scavenger-Mutant 7% | Scavenger-Skirmisher 6% | Wizard-Tank 3% | Wizard-Gunner Dominant Class ---------------- Mutant | -10/Materials Mutant | -10/Mines Gunner | -9/Materials Gunner | -9/Mines Mutant | -9/Exiles Scavenger-Tank | -8/Mines Scavenger-Tank | -8/Materials Scavenger-Tank | -7/Factory Gunner | -7/Lower Caves Scavenger-Gunner | -7/Lower Caves Gunner | -7/Zion Scavenger-Mutant | -7/Deep Caves Scavenger-Tank | -6/Proximity Caves Scavenger-Skirmisher | -6/Factory Scavenger-Skirmisher | -6/Lower Caves Scavenger-Skirmisher | -6/Lower Caves Scavenger-Mutant | -6/Data Miner Scavenger-Skirmisher | -5/Proximity Caves Scavenger-Tank | -5/Factory Scavenger-Tank | -5/Extension Scavenger-Tank | -5/Cetus Scavenger-Tank | -5/Archives Scavenger-Tank | -5/Hub_04(d) Wizard-Tank | -4/Factory Scavenger-Skirmisher | -4/Waste Scavenger-Skirmisher | -4/Factory Wizard-Gunner | -4/Armory Wizard-Mutant | -4/Lab Wizard-Gunner | -3/Research Wizard-Mutant | -3/Quarantine Wizard-Mutant | -3/Section 7 Wizard-Tank | -2/Research Wizard-Mutant | -1/Access Scavenger-Tank | -1/Command Resources | -11 -10 -10 -9 -9 -9 -8 -8 -7 -7 -7 -7 -7 -6 -6 -6 -6 -6 -5 -5 -5 -5 -5 -5 -4 -4 -4 -4 -4 -3 -3 -3 -2 -1 -1 ----------- Run | Scr Mat Min Mat Min Exi Min Mat Fac Low Low Zio Dee Pro Fac Low Low Dat Pro Fac Ext Cet Arc Hub Fac Was Fac Arm Lab Res Qua Sec Res Acc Com Matter Collected 23298 | 340 195 120 502 16 953 61 49 879 256 288 1041 115 1003 726 112 60 180 604 611 1158 848 360 . . 397 453 1180 170 966 1235 316 1123 1720 5261 Remotely 8254 | 203 195 120 502 16 . . . . . . . . . . . . . . . . . . . . . . . . 719 642 107 136 1625 3989 Salvage Created 28554 | 147 215 75 384 22 542 36 84 919 234 751 1678 273 894 869 90 . 369 682 845 1626 1326 703 . . 1717 592 1609 90 1049 1737 780 2295 1750 4171 Parts 1354 | 17 12 6 33 3 56 . 4 40 11 35 128 17 32 48 3 . 14 32 32 71 53 45 . . 27 25 93 8 73 66 42 87 99 142 Haulers Intercepted 5 | . 2 . 1 . . . . 1 . . . . . . . . . . . 1 . . . . . . . . . . . . . . Recyclers Shooed 11 | . . . 1 . . . . 1 . . . . . 1 . . . . 1 1 . . . . . . . . . . . 1 3 2 Parts Field Recycled . | . . . . . . . . . . . . . . . . . . . . . . . . . . . . . . . . . . . Retrieved Matter . | . . . . . . . . . . . . . . . . . . . . . . . . . . . . . . . . . . . Parts Self-Destructed 106 | . . . . . . . . . 11 30 . . 32 . 2 . . 31 . . . . . . . . . . . . . . . . Prevented 9 | . . . . . . . . . . 9 . . . . . . . . . . . . . . . . . . . . . . . . Kills | -11 -10 -10 -9 -9 -9 -8 -8 -7 -7 -7 -7 -7 -6 -6 -6 -6 -6 -5 -5 -5 -5 -5 -5 -4 -4 -4 -4 -4 -3 -3 -3 -2 -1 -1 ------- Run | Scr Mat Min Mat Min Exi Min Mat Fac Low Low Zio Dee Pro Fac Low Low Dat Pro Fac Ext Cet Arc Hub Fac Was Fac Arm Lab Res Qua Sec Res Acc Com Combat Hostiles Destroyed 357 | . 4 5 9 2 4 1 2 11 7 18 8 9 13 10 1 . 4 14 10 19 20 4 . . 6 7 27 1 13 14 10 27 31 46 Melee 21 | . . . . . 1 . . . . . . . . . . . 4 . . . . . . . . . 1 . . . 1 10 2 2 Guns 246 | . 4 1 7 2 . 1 1 5 7 17 8 3 13 10 1 . . 14 10 19 20 4 . . 6 7 26 . 13 11 2 11 15 8 Cannons 65 | . . 3 . . 1 . 1 6 . . . . . . . . . . . . . . . . . . . . . . 5 5 11 33 AOE 14 | . . 1 2 . 2 . . . . 1 . 6 . . . . . . . . . . . . . . . . . . . . 2 . Classes Destroyed 30 | 2 3 . 3 1 1 1 . 2 . 2 3 2 1 1 1 . . . . . . . . . 1 . 2 . . 2 1 . 1 . Worker 13 | . . . . . . . . . . . . . . 6 . . . . . . . . . . . . . . . 1 . 1 2 3 Builder 6 | . . . 1 1 . . . . . . . . . . . . . . 1 1 . . . . . . . . . . . . 2 . Tunneler 6 | 4 . . . . . . . . . . . . . 1 . . . . . 1 . . . . . . . . . . . . . . Hauler 5 | . 2 . 1 . . . . 1 . . . . . . . . . . . 1 . . . . . . . . . . . . . . Recycler 23 | 1 . . . . . . . 7 . . . . . 2 . . . . 1 1 . . . . . . . . . 1 . 4 2 4 Mechanic 1 | . . . . . . . . 1 . . . . . . . . . . . . . . . . . . . . . . . . . . Operator 15 | . . . . . . . . . . . . . . . . . . . . . . 9 . . . . 2 . . 1 1 . 2 . Watcher 10 | . . . 1 . . . . . . . . . . 2 . . . . 1 1 1 . . . . . 1 . . 2 . . 1 . Swarmer 63 | . 2 3 3 . . . . . 5 8 . . 3 5 . . . 5 1 5 . . . . . . 8 . . . . 4 11 . Saboteur 3 | . . . . . . . . . . . . . . . . . . . . . . . . . . . 2 . . . . . . 1 Grunt 91 | . 2 2 4 . . . 1 5 1 8 . . 6 1 1 . . 4 5 5 11 . . . . 3 8 . . 7 3 . 4 10 Brawler 5 | . . . . . . . . . . 1 . . 2 . . . . 1 . . . . . . . . . . . . . . . 1 Duelist 6 | . . . . . . . . . . . . . . . . . . 1 . 1 1 . . . . . 1 . . . . . . 2 Protector 2 | . . . . . . . . . . 1 . . . . . . . . . . . . . . . . . . . . . . . 1 Researcher 2 | . . . . . . . . . . . . . . . . . . . . . . . . . . . . . . 2 . . . . Sentry 38 | . . . 2 . . . 1 1 1 . . . . 1 . . . 1 4 5 . 4 . . . 3 3 . 4 . . 5 1 2 Demolisher 1 | . . . . . . . . . . . . . . . . . . . . . . . . . . . 1 . . . . . . . Hunter 22 | . . . . . . 1 . 2 . . . . . . . . . . . 2 . . . . . . . . 2 4 2 2 3 4 Programmer 59 | . . . . . . . . 3 . . . . 1 3 . . . 2 . . . . . . . 1 4 . 7 . 2 9 9 18 Q-Series 3 | . . . . . . . . . . . . . . . . . . . . . . . . . . . . . . . . . 3 . Behemoth 3 | . . . . . . . . . . . . . 1 . . . . . . 1 . . . . . . . . . . . . . 1 Compactor 6 | . . . . . . . . . . . . . . . . . . . . . . . . . 6 . . . . . . . . . Cetus Guard 8 | . . . . . . . . . . . . . . . . . . . . . 8 . . . . . . . . . . . . . S7 Guard 1 | . . . . . . . . . . . . . . . . . . . . . . . . . . . . . . . 1 . . . M Guard 2 | . . . . . . . . . . . . . . . . . . . . . . . . . . . . . . . . . . 2 Enhanced Grunt 4 | . . . . . . . . . . . . . . . . . 4 . . . . . . . . . . . . . . . . . Tracker 6 | . . . . . . . . . . . . . . . . . . . . . . . . . . . . . . 1 . 5 . . Combat Programmer 5 | . . . . . . . . . . . . . . . . . . . . . . . . . . . . . . 1 . 2 . 2 Executioner 2 | . . . . . . . . . . . . . . . . . . . . . . . . . . . . . . . 2 . . . Fortress 1 | . . . . . . . . . . . . . . . . . . . . . . . . . . . . . . 1 . . . . Zionite 63 | . . . . . 7 . . . . . 56 . . . . . . . . . . . . . . . . . . . . . . . Z-Technician 1 | . . . . . . . . . . . . 1 . . . . . . . . . . . . . . . . . . . . . . Z-Light 6 | . . . . . . . . . . . . 6 . . . . . . . . . . . . . . . . . . . . . . Packrat 2 | . . . . . . . . . . . . . 2 . . . . . . . . . . . . . . . . . . . . . Tinkerer 2 | . . . . . . . . . . . 2 . . . . . . . . . . . . . . . . . . . . . . . Thief 1 | . . . . . . . . . . . . . . . 1 . . . . . . . . . . . . . . . . . . . Assembled 8 | . . . . 2 3 . . . . . . 3 . . . . . . . . . . . . . . . . . . . . . . Thug 2 | . . . . . . . . . . . . . . . . . . . . 2 . . . . . . . . . . . . . . Butcher 1 | . . . . . . . . . . . 1 . . . . . . . . . . . . . . . . . . . . . . . Guerrilla 1 | . . . . . . . . . . . . . . . . . . . . 1 . . . . . . . . . . . . . . Mutant 5 | . . . . . . . . . . . 5 . . . . . . . . . . . . . . . . . . . . . . . Best Kill Streak 13 | 5 2 3 4 2 3 1 2 3 4 11 13 6 4 4 1 . 2 5 4 5 7 4 . . 3 3 6 1 5 5 4 4 11 8 Combat Bots Only 11 | . 2 3 4 1 3 1 2 2 4 11 2 6 4 3 1 . 2 5 4 4 7 2 . . 3 3 6 1 5 4 4 4 8 6 Max Kills in Single Turn 4 | 1 1 1 3 1 2 1 1 2 3 2 2 3 2 2 1 . 1 2 2 3 2 2 . . 1 1 2 1 2 2 1 1 4 1 Gunslinging 2 | . . . . . . . . . 2 1 . 2 . . . . . 1 . . 1 . . . . . 1 . 1 . . . 1 . Exploded 3 | . . 1 2 . 2 . . . . 1 . 3 . . . . . . . . . . . . . . . . . . . . 2 . Melee 1 | . . . . . 1 . . . . . . . . . . . 1 . . . . . . . . . 1 . . . 1 1 1 1 Uniques/NPCs Destroyed 11 | . . . . . 4 . . . . . 2 . . . . . 1 . . 1 . . . . . . . 1 . . . . . 2 8R-AWN (-9/Exiles) EX-BIN (-9/Exiles) EX-HEX (-9/Exiles) EX-DEC (-9/Exiles) 99-TNT (-7/Zion) Imprinter (-7/Zion) Data Miner (-6/Data Miner) A7 (-5/Extension) A5 (-4/Lab) MAIN.C Shell (-1/Command) MAIN.C (-1/Command) Combat | -11 -10 -10 -9 -9 -9 -8 -8 -7 -7 -7 -7 -7 -6 -6 -6 -6 -6 -5 -5 -5 -5 -5 -5 -4 -4 -4 -4 -4 -3 -3 -3 -2 -1 -1 -------- Run | Scr Mat Min Mat Min Exi Min Mat Fac Low Low Zio Dee Pro Fac Low Low Dat Pro Fac Ext Cet Arc Hub Fac Was Fac Arm Lab Res Qua Sec Res Acc Com Damage Taken 32975 | . 142 154 312 . 1402 167 112 466 211 654 1309 96 904 504 . . 902 594 280 869 1798 249 96 . . 859 645 815 942 1057 2088 5195 4024 6129 Core 2530 | . 67 31 . . 183 23 . 42 . 63 45 40 56 36 . . 48 71 . 139 41 . . . . 21 8 33 24 39 413 736 195 176 Absorbed by Shields 6921 | . . . . . . . . . . . . . . . . . . . 177 74 . . . . . . 336 . . 104 . 28 1327 4875 Reduced by Siege Mode 1174 | . . . . . . . . . . . . . . . . . . . . . 69 30 8 . . 55 10 14 31 54 71 296 257 279 Redirected to Core 569 | . . . . . . . . . . . . . . . . . . . . . . . . . . . . . . . . 569 . . Core Remaining (%) 72 | 100 . 60 . . . 48 100 . . . . . 64 . . . . 81 . . . . 82 . . . . 94 . . 38 49 . 86 Volleys Fired 1100 | 15 32 11 28 4 89 8 6 84 6 19 73 5 26 21 2 . . 19 23 44 31 17 3 . 12 16 46 16 21 55 47 48 91 182 Largest 5 | 2 2 2 4 4 3 3 3 4 4 4 4 4 4 5 5 . . 5 5 5 5 5 5 . 5 5 5 5 5 5 3 5 4 4 Hottest 380 | 40 100 55 90 80 82 82 82 126 216 216 250 108 114 137 142 . . 140 150 160 157 171 171 . 171 171 175 180 200 200 380 255 199 300 Shots Fired 3196 | 30 57 19 108 16 104 24 18 196 24 63 220 11 96 97 10 . . 95 107 214 154 85 15 . 53 80 224 40 101 145 52 148 176 414 Gun 2559 | 30 50 11 107 16 89 16 12 80 24 57 220 8 96 97 10 . . 95 105 214 154 85 15 . 53 80 223 35 101 115 10 132 105 114 Cannon 612 | . . 5 . . 12 8 6 116 . . . . . . . . . . 2 . . . . . . . . 5 . 29 42 16 71 300 Launcher 18 | . . 3 1 . 3 . . . . 6 . 3 . . . . . . . . . . . . . . 1 . . 1 . . . . Special 7 | . 7 . . . . . . . . . . . . . . . . . . . . . . . . . . . . . . . . . Kinetic 2938 | 30 50 16 107 16 101 24 18 196 12 43 196 8 96 97 10 . . 95 105 214 154 85 15 . 53 80 223 35 101 115 10 115 163 355 Thermal 180 | . 7 . . . . . . . 12 14 24 . . . . . . . 2 . . . . . . . . 5 . 29 42 16 8 21 Explosive 12 | . . 3 1 . 3 . . . . . . 3 . . . . . . . . . . . . . . 1 . . 1 . . . . Electromagnetic 66 | . . . . . . . . . . 6 . . . . . . . . . . . . . . . . . . . . . 17 5 38 Robot Hit Streak 103 | 8 11 6 10 5 6 6 3 16 14 17 21 10 20 16 6 . . 8 13 22 26 26 . . 19 23 14 16 21 25 42 51 30 103 Robot Miss Streak 20 | 2 6 2 4 2 4 2 1 3 5 7 8 6 7 8 2 . . 20 13 7 5 2 . . 4 1 5 2 2 1 . 3 3 3 Penetration Max 1 | . . . . . 1 . . . . . . . 1 1 . . . . 1 1 1 1 . . . 1 1 . 1 . . . 1 . Secondary Targets 55 | . . . 1 . . . . . 3 3 6 2 3 . . . . 4 1 3 11 . . . . 2 8 . 2 . . 3 3 . Max Gunslinging Chain 2 | . . . 1 . . . . . 2 1 1 2 1 . . . . 1 1 1 2 . . . . 1 2 . 1 . . 1 2 . Autonomous 7 | . . . . . 7 . . . . . . . . . . . . . . . . . . . . . . . . . . . . . Shots Hit Robots 2424 | 19 29 12 65 8 118 15 12 104 20 56 158 12 81 66 3 . 38 86 75 138 135 48 . . 29 45 131 25 66 86 27 151 158 408 Core Hits 1844 | 9 16 9 28 6 35 4 5 44 20 61 150 20 85 67 6 . 19 83 83 120 123 31 . . 8 19 64 4 25 37 17 64 143 439 Critical Kills 87 | . . . . . 5 . . . . . . . 1 3 . . . . 1 4 5 5 . . 5 4 11 1 13 16 5 3 5 . Critical Parts Destroyed 93 | . . . . . 10 . . . . . . . 2 1 1 . . . . 3 6 2 . . . 3 16 . 15 14 3 5 7 5 Critical Strikes 204 | . . 1 1 . 17 . . 5 . . . . 3 4 1 . 5 . 1 7 11 7 . . 7 8 27 1 30 30 8 8 15 7 Meltdown 7 | . . . . . . . . . . . . . . . . . . . . . . . . . . . . 1 . 3 2 1 . . Destroy 182 | . . . 1 . 16 . . . . . . . 3 4 1 . . . 1 7 11 7 . . 7 8 27 . 30 27 6 7 14 5 Blast 7 | . . 1 . . 1 . . 5 . . . . . . . . . . . . . . . . . . . . . . . . . . Corrupt 3 | . . . . . . . . . . . . . . . . . . . . . . . . . . . . . . . . . 1 2 Sever 3 | . . . . . . . . . . . . . . . . . 3 . . . . . . . . . . . . . . . . . Puncture 2 | . . . . . . . . . . . . . . . . . 2 . . . . . . . . . . . . . . . . . Melee Attacks 326 | . . . . . 93 . . . . . . 12 1 15 5 . 78 1 2 . . . . . 3 . . . . 1 4 60 20 31 Kinetic 1 | . . . . . . . . . . . . . . . . . . . . . . . . . . . . . . 1 . . . . Impact 62 | . . . . . 62 . . . . . . . . . . . . . . . . . . . . . . . . . . . . . Slashing 181 | . . . . . 31 . . . . . . . . . . . 35 . . . . . . . . . . . . . 4 60 20 31 Piercing 82 | . . . . . . . . . . . . 12 1 15 5 . 43 1 2 . . . . . 3 . . . . . . . . . Sneak Attacks 21 | . . . . . . . . . . . . . . 7 . . 1 . . . . . . . . . . . . . . 5 3 5 Combat Hostiles 1 | . . . . . . . . . . . . . . . . . . . . . . . . . . . . . . . . 1 . . Follow-up Attacks 68 | . . . . . 42 . . . . . . . . . . . 26 . . . . . . . . . . . . . . . . . Damage Inflicted 74612 | 150 249 336 703 91 3759 189 213 1914 360 1232 4041 1534 1967 1791 86 . 1351 1418 1830 4167 3626 1369 115 . 800 1450 2730 545 690 1330 1511 7161 6371 19533 Guns 38670 | 150 240 37 514 69 842 108 60 788 360 931 4041 172 1967 1205 86 . . 1418 1830 4148 3613 1369 . . 800 1420 2664 263 659 647 56 2095 2675 3443 Cannons 17865 | . . 95 . . 665 44 129 1112 . . . . . . . . . . . . . . . . . . . 171 . 592 1320 706 1829 11202 Explosions 2601 | . . 189 189 . 222 . . . . 301 . 1075 . . . . . . . . . . 93 . . . 39 . . 90 . . 403 . Melee 14949 | . . . . . 2026 . . . . . . 207 . 586 . . 1351 . . . . . . . . . . . . . 117 4344 1464 4854 Ramming 527 | . 9 15 . 22 4 37 24 14 . . . 80 . . . . . . . 19 13 . 22 . . 30 27 111 31 1 18 16 . 34 Kinetic 49597 | 150 240 132 514 69 1507 152 189 1900 186 736 2223 172 1967 1205 86 . . 1418 1830 4148 3613 1369 . . 800 1420 2664 263 659 647 56 1945 4208 13129 Thermal 6065 | . . . . . . . . . 174 195 1818 . . . . . . . . . . . . . . . . 171 . 592 1320 706 149 940 Explosive 2207 | . . 189 189 . 222 . . . . . . 1075 . . . . . . . . . . . . . . 39 . . 90 . . 403 . Electromagnetic 1267 | . . . . . . . . . . 301 . . . . . . . . . . . . 93 . . . . . . . . 150 147 576 Impact 1277 | . . . . . 1277 . . . . . . . . . . . . . . . . . . . . . . . . . . . . . Slashing 12238 | . . . . . 749 . . . . . . . . . . . 710 . . . . . . . . . . . . . 117 4344 1464 4854 Piercing 1434 | . . . . . . . . . . . . 207 . 586 . . 641 . . . . . . . . . . . . . . . . . Highest Corruption 84 | . . . . . 3 3 1 1 1 2 2 1 3 . . . . 3 . . . . 1 . . 1 2 11 4 8 8 18 3 84 Average Corruption 9 | . . . . . 2 3 1 1 1 1 1 1 2 . . . . 2 . . . . 1 . . 1 1 8 3 5 8 8 1 52 Corruption Purged 1 | . . . . . . . . . 1 . . . . . . . . . . . . . . . . . . . . . . . . . Effects 480 | . . . . . 42 2 1 2 . 5 8 7 47 . . . . 1 . . . . . . . . 7 14 17 33 26 41 9 218 Message Errors 115 | . . . . . 13 1 . 1 . 2 6 4 13 . . . . . . . . . . . . . 4 5 5 9 5 8 2 37 Matter Fused 87 | . . . . . 12 . . . . . . . 12 . . . . 1 . . . . . . . . . 3 5 9 9 8 2 26 Heat Flow Errors 47 | . . . . . 6 . . . . 1 . . 6 . . . . . . . . . . . . . 1 3 2 4 2 5 2 15 Energy Discharges 59 | . . . . . 8 1 . . . 1 1 2 10 . . . . . . . . . . . . . 1 1 2 4 3 8 . 17 Parts Rejected 4 | . . . . . . . . . . . . . . . . . . . . . . . . . . . . . 1 . . 1 . 2 Data Loss (minor) 44 | . . . . . 3 . 1 1 . 1 1 1 5 . . . . . . . . . . . . . 1 1 2 2 6 3 2 14 Data Loss (major) 18 | . . . . . . . . . . . . . . . . . . . . . . . . . . . . . . 2 . 4 . 12 Misfires 11 | . . . . . . . . . . . . . . . . . . . . . . . . . . . . . . 1 . 3 . 7 Alerts 5 | . . . . . . . . . . . . . . . . . . . . . . . . . . . . . . . . . . 5 Misdirections 55 | . . . . . . . . . . . . . . . . . . . . . . . . . . . . 1 . . . . . 54 Weapon Failures 35 | . . . . . . . . . . . . . 1 . . . . . . . . . . . . . . . . 2 1 1 1 29 Overload Shots . | . . . . . . . . . . . . . . . . . . . . . . . . . . . . . . . . . . . Overflow Damage 2473 | . . . . . 173 . . 33 . . . 174 . 147 . . 2 . . . . . 16 . . . 17 . . . 33 682 418 778 Projectiles 361 | . . . . . 94 . . 33 . . . . . . . . . . . . . . . . . . . . . . 33 48 3 150 Explosions 154 | . . . . . . . . . . . . 87 . 6 . . . . . . . . 16 . . . . . . . . . 45 . Melee 1958 | . . . . . 79 . . . . . . 87 . 141 . . 2 . . . . . . . . . 17 . . . . 634 370 628 Knockbacks 155 | . . 1 . . 7 2 3 17 . . . 1 . . . . . . . 1 . . 1 . . 1 . . . . . 1 35 85 Impact 6 | . . . . . . 1 . . . . . 1 . . . . . . . 1 . . 1 . . 1 . . . . . 1 . . Kinetic 138 | . . 1 . . 7 1 3 16 . . . . . . . . . . . . . . . . . . . . . . . . 33 77 Secondary 11 | . . . . . . . . 1 . . . . . . . . . . . . . . . . . . . . . . . . 2 8 Self-Inflicted Damage 480 | . . . . . 12 . . . . 51 . . . 92 . . . . . . . . 97 . . . . 111 . . . . 117 . Shots 9 | . . . . . 1 . . . . 4 . . . 2 . . . . . . . . 1 . . . . . . . . . 1 . Rammed 45 | . 1 2 . 3 3 . 4 4 . . . 15 . . . . . . . 2 3 . 1 . . 1 . . 2 . 1 1 . 2 Targets Rammed 55 | . 2 2 . 4 3 3 4 4 . . . 16 . . . . . . . 2 4 . 1 . . 1 1 . 2 1 1 2 . 2 Kicked 4 | . 1 . . . . 3 . . . . . . . . . . . . . . . . . . . . . . . . . . . . Crushed 6 | . . . . 1 . . . . . . . 1 . . . . . . . . 1 . . . . . 1 . . 1 . 1 . . Highest Temperature 354 | . 144 46 232 42 258 73 72 289 198 198 269 145 258 148 . . . 21 12 8 35 30 30 . 172 24 276 155 277 226 183 251 228 354 Average Temperature 81 | . 45 19 76 22 85 33 40 76 120 118 101 67 92 44 . . . 9 7 7 16 11 15 . 64 10 101 42 75 80 86 54 116 97 Received Heat Transfer 3347 | . 51 54 108 . . . 54 162 24 207 205 47 216 . . . 120 108 41 143 456 45 . . . 123 116 . 9 60 256 234 236 272 Effects 3 | . . . . . . . . 3 . . . . . . . . . . . . . . . . . . . . . . . . . . Interference 3 | . . . . . . . . 3 . . . . . . . . . . . . . . . . . . . . . . . . . . Siege Activations 63 | . . . . . . . . . . . . . . . . . . . . . 3 4 1 . . 4 3 2 4 8 4 8 9 13 Total Turns 2462 | . . . . . . . . . . . . . . . . . . . . . 60 34 12 . . 59 21 58 177 104 62 373 569 933 Longest Duration 370 | . . . . . . . . . . . . . . . . . . . . . 22 12 12 . . 27 12 50 98 38 30 106 370 206 Robots Corrupted 3 | . . . . . . . . . . . . . . . . . . . . . . . . . . . . . . . . . . 3 Combat Hostiles 3 | . . . . . . . . . . . . . . . . . . . . . . . . . . . . . . . . . . 3 Parts Fried 13 | . . . . . . . . . . 4 . . . . . . . . . . . . . . . . 1 . . . . 1 . 7 Impact Corruptions 8 | . . . . . 6 . . . . . . 1 . . . . . . . . . . . . . . 1 . . . . . . . Robots Melted 7 | . . . . . . . . . . . . . . . . . . . . . . . . . . . . 1 . 3 2 1 . . Combat Hostiles 6 | . . . . . . . . . . . . . . . . . . . . . . . . . . . . 1 . 2 2 1 . . Parts Melted 32 | . . . . . . . . . . . 8 . . . . . . . . . . . . . . . . 8 . 4 5 5 . 2 Heat Transferred 6137 | . . . . . . . . . 400 450 2290 . . . . . . . . . . . . . . . . 185 . 407 925 592 185 703 Parts Sabotaged 6 | . . . . . . . . . . . . . . . . . . . . . . . . . . . 6 . . . . . . . Parts Stolen . | . . . . . . . . . . . . . . . . . . . . . . . . . . . . . . . . . . . Parts Stripped . | . . . . . . . . . . . . . . . . . . . . . . . . . . . . . . . . . . . Power Chain Reactions . | . . . . . . . . . . . . . . . . . . . . . . . . . . . . . . . . . . . Missiles Intercepted . | . . . . . . . . . . . . . . . . . . . . . . . . . . . . . . . . . . . Alert | -11 -10 -10 -9 -9 -9 -8 -8 -7 -7 -7 -7 -7 -6 -6 -6 -6 -6 -5 -5 -5 -5 -5 -5 -4 -4 -4 -4 -4 -3 -3 -3 -2 -1 -1 ------- Run | Scr Mat Min Mat Min Exi Min Mat Fac Low Low Zio Dee Pro Fac Low Low Dat Pro Fac Ext Cet Arc Hub Fac Was Fac Arm Lab Res Qua Sec Res Acc Com Peak Influence 784 | 25 156 120 298 95 . 46 97 167 . . . . . 515 . . . . 242 592 740 478 371 181 77 196 784 . 471 326 280 331 604 758 Initial 352 | . 16 . . 37 . . 17 2 . . . . . 75 . . . . 75 95 331 216 97 181 63 53 95 . . 264 83 72 148 352 Average 197 | 17 34 61 158 35 . 32 58 68 . . . . . 174 . . . . 120 150 530 385 127 181 72 107 241 . 164 184 146 206 387 579 Maximum Alert Level 3 | . . . 1 . . . . . . . . . . 2 . . . . 1 2 3 2 1 . . . 3 . 2 1 1 1 2 3 Low Security (%) 57 | 100 100 100 59 100 . 100 100 100 . . . . . 66 . . . . 88 70 . . 88 100 100 100 52 . 58 53 73 41 5 . Level 1 20 | . . . 40 . . . . . . . . . . 14 . . . . 11 13 25 30 11 . . . 36 . 36 46 26 58 52 4 Level 2 13 | . . . . . . . . . . . . . . 19 . . . . . 16 63 69 . . . . 4 . 4 . . . 41 39 Level 3 7 | . . . . . . . . . . . . . . . . . . . . . 10 . . . . . 5 . . . . . . 55 Level 4 . | . . . . . . . . . . . . . . . . . . . . . . . . . . . . . . . . . . . Level 5 . | . . . . . . . . . . . . . . . . . . . . . . . . . . . . . . . . . . . High Security . | . . . . . . . . . . . . . . . . . . . . . . . . . . . . . . . . . . . Max Security . | . . . . . . . . . . . . . . . . . . . . . . . . . . . . . . . . . . . Squads Dispatched 55 | . . 1 . . . . 1 5 . 1 . . . 6 . . . . 1 2 . . . . . 2 2 . 1 6 2 14 5 6 Investigation 2 | . . 1 . . . . . . . . . . . . . . . . . . . . . . . . . . . . . 1 . . Extermination 27 | . . . . . . . . 3 . . . . . 4 . . . . . . . . . . . 2 2 . 1 3 1 4 3 4 Reinforcement 12 | . . . . . . . 1 2 . . . . . 2 . . . . 1 2 . . . . . . . . . 1 1 . 2 . Assault 3 | . . . . . . . . . . 1 . . . . . . . . . . . . . . . . . . . . . . . 2 Garrison 2 | . . . . . . . . . . . . . . . . . . . . . . . . . . . . . . . . 2 . . Intercept 9 | . . . . . . . . . . . . . . . . . . . . . . . . . . . . . . 2 . 7 . . Construction Impeded 3 | . . . . . . . . . . . . . . . . . . . 1 2 . . . . . . . . . . . . . . Haulers Reinforced . | . . . . . . . . . . . . . . . . . . . . . . . . . . . . . . . . . . . Cargo Convoy Interrupts . | . . . . . . . . . . . . . . . . . . . . . . . . . . . . . . . . . . . Stealth | -11 -10 -10 -9 -9 -9 -8 -8 -7 -7 -7 -7 -7 -6 -6 -6 -6 -6 -5 -5 -5 -5 -5 -5 -4 -4 -4 -4 -4 -3 -3 -3 -2 -1 -1 --------- Run | Scr Mat Min Mat Min Exi Min Mat Fac Low Low Zio Dee Pro Fac Low Low Dat Pro Fac Ext Cet Arc Hub Fac Was Fac Arm Lab Res Qua Sec Res Acc Com Distress Signals 31 | . 1 . 2 . . . . . . . . . . . . . . . 1 1 2 . . . . . 2 . 2 1 1 . 1 17 Communications Jammed . | . . . . . . . . . . . . . . . . . . . . . . . . . . . . . . . . . . . Distress Signals . | . . . . . . . . . . . . . . . . . . . . . . . . . . . . . . . . . . . Times Spotted 622 | . 10 5 19 5 54 1 3 19 7 19 68 7 13 26 5 . 4 14 12 45 22 7 . . 4 9 37 1 26 22 16 33 50 59 Peak Tracking Total 9 | . 4 3 5 2 9 1 4 3 4 7 5 5 4 4 4 . 3 5 3 8 8 1 . . 2 5 5 1 4 6 6 6 9 7 Tactical Retreats 47 | . . . . . 26 . . 5 . . 4 . . 1 . . . . . 4 . . . . . 1 2 . . 1 1 1 . 1 Traps | -11 -10 -10 -9 -9 -9 -8 -8 -7 -7 -7 -7 -7 -6 -6 -6 -6 -6 -5 -5 -5 -5 -5 -5 -4 -4 -4 -4 -4 -3 -3 -3 -2 -1 -1 ------- Run | Scr Mat Min Mat Min Exi Min Mat Fac Low Low Zio Dee Pro Fac Low Low Dat Pro Fac Ext Cet Arc Hub Fac Was Fac Arm Lab Res Qua Sec Res Acc Com Traps Triggered 12 | . . . . . . . 1 . . . . . . 1 . . . . . 6 . . . 1 . . 1 . . 1 . 1 . . Indirectly . | . . . . . . . . . . . . . . . . . . . . . . . . . . . . . . . . . . . Trap Hack Attempts . | . . . . . . . . . . . . . . . . . . . . . . . . . . . . . . . . . . . Triggered . | . . . . . . . . . . . . . . . . . . . . . . . . . . . . . . . . . . . Disarmed . | . . . . . . . . . . . . . . . . . . . . . . . . . . . . . . . . . . . Reprogrammed . | . . . . . . . . . . . . . . . . . . . . . . . . . . . . . . . . . . . Reused . | . . . . . . . . . . . . . . . . . . . . . . . . . . . . . . . . . . . Traps Extracted . | . . . . . . . . . . . . . . . . . . . . . . . . . . . . . . . . . . . Installed . | . . . . . . . . . . . . . . . . . . . . . . . . . . . . . . . . . . . Triggered 1 | . . . . . . . . . . . . . . . . . . . . . . . . . . . . . . . . . . 1 Exploded 2 | . . . . . 2 . . . . . . . . . . . . . . . . . . . . . . . . . . . . . Machines | -11 -10 -10 -9 -9 -9 -8 -8 -7 -7 -7 -7 -7 -6 -6 -6 -6 -6 -5 -5 -5 -5 -5 -5 -4 -4 -4 -4 -4 -3 -3 -3 -2 -1 -1 ---------- Run | Scr Mat Min Mat Min Exi Min Mat Fac Low Low Zio Dee Pro Fac Low Low Dat Pro Fac Ext Cet Arc Hub Fac Was Fac Arm Lab Res Qua Sec Res Acc Com Machines Disabled 68 | . . . . . 15 1 1 1 . . . . 1 6 . . 1 . 1 3 . 5 8 . . 2 4 3 . 9 5 . 1 1 Max in Single Turn 8 | . . . . . 2 1 1 1 . . . . 1 4 . . 1 . 1 2 . 1 8 . . 1 1 1 . 1 1 . 1 1 Garrison Access 2 | . . . . . . . . . . . . . . . . . . . . . . . . . . . . . . . . 2 . . Phase Generator 1 | . . . . . . . . . . . . . . . . . . . . . . . . . . . . . . . . . . 1 Network Hub 1 | . . . . . . . . . . . . . . . . . . . . . . . 1 . . . . . . . . . . . Energy Cycler 1 | . . . . . . . . . . . . . . . . . . . . 1 . . . . . . . . . . . . . . Machines Sabotaged . | . . . . . . . . . . . . . . . . . . . . . . . . . . . . . . . . . . . Garrisons Compromised . | . . . . . . . . . . . . . . . . . . . . . . . . . . . . . . . . . . . Overloaded Fab Kills . | . . . . . . . . . . . . . . . . . . . . . . . . . . . . . . . . . . . Fab Network Shutdowns 3 | . . . . . . . . . . . . . . 1 . . . . . . . . . . . . 1 . 1 . . . . . Hacking | -11 -10 -10 -9 -9 -9 -8 -8 -7 -7 -7 -7 -7 -6 -6 -6 -6 -6 -5 -5 -5 -5 -5 -5 -4 -4 -4 -4 -4 -3 -3 -3 -2 -1 -1 --------- Run | Scr Mat Min Mat Min Exi Min Mat Fac Low Low Zio Dee Pro Fac Low Low Dat Pro Fac Ext Cet Arc Hub Fac Was Fac Arm Lab Res Qua Sec Res Acc Com Machines Accessed 89 | . 5 1 1 . 1 . 2 3 1 . . . . 15 . . 3 1 2 13 . . . 1 . 3 11 . 5 7 2 6 3 3 Terminals 59 | . 5 . 1 . . . 2 3 . . . . . 9 . . . 1 . 13 . . . 1 . 1 7 . 2 5 2 3 2 2 Fabricators 11 | . . . . . . . . . . . . . . 2 . . . . 2 . . . . . . 1 4 . 1 . . . 1 . Repair Stations 5 | . . . . . . . . . . . . . . 2 . . . . . . . . . . . . . . 2 1 . . . . Recycling Units 1 | . . . . . . . . . . . . . . . . . . . . . . . . . . . . . . . . . . 1 Scanalyzers 3 | . . . . . . . . . . . . . . 1 . . . . . . . . . . . . . . . 1 . 1 . . Garrison Access 4 | . . . . . . . . . . . . . . 1 . . . . . . . . . . . 1 . . . . . 2 . . Total Hacks 426 | . 15 1 3 . 1 . 10 6 1 . . . . 45 . . 24 2 5 40 . . . 10 . 15 60 . 42 54 17 36 29 10 Successful 257 | . 7 1 2 . 1 . 5 2 1 . . . . 29 . . 24 2 4 22 . . . 4 . 12 48 . 24 32 12 10 14 1 Failed 167 | . 7 . 1 . . . 5 4 . . . . . 16 . . . . 1 18 . . . 6 . 3 11 . 18 22 5 26 15 9 Catastrophic 20 | . . . 1 . . . . 1 . . . . . . . . . . . 4 . . . . . . . . 4 3 . 4 2 1 Database Lockouts 2 | . 1 . . . . . . . . . . . . . . . . . . . . . . . . . 1 . . . . . . . Manual 202 | . 11 . 3 . 1 . 6 2 . . 4 . . 19 . . . . 1 24 . . . 10 . 7 28 . 13 34 7 26 6 . Terminals 306 | . 15 . 3 . . . 10 6 . . . . . 28 . . . 2 . 40 . . . 10 . 6 40 . 29 49 17 26 17 8 Fabricators 59 | . . . . . . . . . . . . . . 8 . . . . 5 . . . . . . 5 20 . 9 . . . 12 . Repair Stations 10 | . . . . . . . . . . . . . . 4 . . . . . . . . . . . . . . 4 2 . . . . Recycling Units 2 | . . . . . . . . . . . . . . . . . . . . . . . . . . . . . . . . . . 2 Scanalyzers 11 | . . . . . . . . . . . . . . 2 . . . . . . . . . . . . . . . 3 . 6 . . Garrison Access 11 | . . . . . . . . . . . . . . 3 . . . . . . . . . . . 4 . . . . . 4 . . Terminal Hacks 175 | . 5 1 2 . 1 . 4 2 1 . . . . 16 . . 24 2 . 19 . . . 3 . 3 28 . 15 24 11 4 9 1 Record 8 | . . . . . . . . . . . . . . . . . 6 2 . . . . . . . . . . . . . . . . Part Schematic 23 | . . . . . . . . . . . . . . 3 . . 9 . . . . . . . . . 6 . 1 4 . . . . Robot Schematic 9 | . . . . . . . . . . . . . . . . . 6 . . . . . . . . . . . 2 1 . . . . Robot Analysis 3 | . 1 . 1 . . . . . . . . . . . . . . . . . . . . . . . 1 . . . . . . . Prototype ID Bank 10 | . . . . . . . . . . . . . . . . . 3 . . 2 . . . . . . 3 . 1 . . . 1 . Open Door 14 | . . 1 . . . . . . 1 . . . . . . . . . . 8 . . . . . . 1 . 1 . 1 . . 1 Level Access Points 5 | . . . . . . . . . . . . . . . . . . . . . . . . . . 1 1 . 1 . 1 1 . . Branch Access Points 7 | . . . 1 . . . . 1 . . . . . 1 . . . . . . . . . 1 . . . . 1 . . 1 1 . Emergency Access Points 3 | . . . . . . . . . . . . . . . . . . . . . . . . . . . 1 . 1 . 1 . . . Machine Index 1 | . . . . . . . . . . . . . . . . . . . . . . . . . . . . . . . . . 1 . Terminal Index 6 | . . . . . . . 1 . . . . . . . . . . . . . . . . 1 . 1 1 . . 1 1 . . . Fabricator Index 1 | . . . . . . . . . . . . . . . . . . . . . . . . . . . 1 . . . . . . . Repair Station Index 1 | . . . . . . . . . . . . . . . . . . . . . . . . . . . . . 1 . . . . . Garrison Index 1 | . . . . . . . . . . . . . . . . . . . . . . . . . . . . . . 1 . . . . Alert Level 13 | . . . . . . . . . . . . . . 1 . . . . . 2 . . . . . . 2 . 1 3 1 1 2 . Unreport Threat 13 | . . . . . . . 2 . . . . . . 2 . . . . . 3 . . . . . . 3 . . 3 . . . . Locate Traps 18 | . 1 . . . . . 1 1 . . . . . 5 . . . . . 2 . . . . . . 2 . 1 3 1 . 1 . Dispatch Records 1 | . . . . . . . . . . . . . . . . . . . . 1 . . . . . . . . . . . . . . Maintenance Status 1 | . . . . . . . . . . . . . . . . . . . . . . . . . . . . . 1 . . . . . Security Status 1 | . . . . . . . . . . . . . . . . . . . . . . . . . . . . . . . . . 1 . Patrol Status 6 | . . . . . . . . . . . . . . . . . . . . 1 . . . 1 . . 2 . 1 . . 1 . . Transport Status 2 | . . . . . . . . . . . . . . . . . . . . . . . . . . . 1 . . 1 . . . . Recall Extermination 3 | . . . . . . . . . . . . . . . . . . . . . . . . . . . . . . 3 . . . . Recall Reinforcements 1 | . . . . . . . . . . . . . . . . . . . . . . . . . . . . . . . 1 . . . Hauler Manifests 4 | . 1 . . . . . . . . . . . . . . . . . . . . . . . . . . . . 1 1 . 1 . Registered Components 4 | . . . . . . . . . . . . . . 1 . . . . . . . . . . . 1 . . 1 . 1 . . . Registered Prototypes 2 | . . . . . . . . . . . . . . . . . . . . . . . . . . . . . 1 . 1 . . . Zone Layout 13 | . 2 . . . . . . . . . . . . 3 . . . . . . . . . . . . 3 . . 3 1 . 1 . EX-Prototype ID Bank 1 | . . . . . 1 . . . . . . . . . . . . . . . . . . . . . . . . . . . . . Fabricator Hacks 26 | . . . . . . . . . . . . . . 4 . . . . 3 . . . . . . 3 10 . 3 . . . 3 . Network Status 1 | . . . . . . . . . . . . . . 1 . . . . . . . . . . . . . . . . . . . . Load Schematic 11 | . . . . . . . . . . . . . . 2 . . . . 2 . . . . . . 1 4 . 1 . . . 1 . Build 14 | . . . . . . . . . . . . . . 1 . . . . 1 . . . . . . 2 6 . 2 . . . 2 . Repair Station Hacks 8 | . . . . . . . . . . . . . . 2 . . . . . . . . . . . . . . 4 2 . . . . Scan Component 4 | . . . . . . . . . . . . . . 1 . . . . . . . . . . . . . . 2 1 . . . . Repair 4 | . . . . . . . . . . . . . . 1 . . . . . . . . . . . . . . 2 1 . . . . Recycling Unit Hacks . | . . . . . . . . . . . . . . . . . . . . . . . . . . . . . . . . . . . Scanalyzer 4 | . . . . . . . . . . . . . . 1 . . . . . . . . . . . . . . . . . 3 . . Insert Component 3 | . . . . . . . . . . . . . . 1 . . . . . . . . . . . . . . . . . 2 . . Analyze 1 | . . . . . . . . . . . . . . . . . . . . . . . . . . . . . . . . 1 . . Garrison Access Hacks 2 | . . . . . . . . . . . . . . . . . . . . . . . . . . . . . . . . 2 . . Seal Access 2 | . . . . . . . . . . . . . . . . . . . . . . . . . . . . . . . . 2 . . Unauthorized Hacks 42 | . 2 . . . . . 1 . . . . . . 6 . . . . 1 3 . . . 1 . 6 10 . 2 6 1 1 2 . Terminals 19 | . 2 . . . . . 1 . . . . . . 3 . . . . . 3 . . . 1 . 1 2 . . 5 1 . . . Track 2 | . 1 . . . . . . . . . . . . . . . . . . . . . . . . . . . . 1 . . . . Assimilate 2 | . . . . . . . . . . . . . . 1 . . . . . . . . . . . 1 . . . . . . . . Botnet 10 | . . . . . . . 1 . . . . . . 2 . . . . . 3 . . . 1 . . 1 . . 2 . . . . Disrupt 1 | . . . . . . . . . . . . . . . . . . . . . . . . . . . . . . 1 . . . . Operators 4 | . 1 . . . . . . . . . . . . . . . . . . . . . . . . . 1 . . 1 1 . . . Fabricators 17 | . . . . . . . . . . . . . . 2 . . . . 1 . . . . . . 2 8 . 2 . . . 2 . Report 1 | . . . . . . . . . . . . . . . . . . . . . . . . . . . 1 . . . . . . . Prioritize 7 | . . . . . . . . . . . . . . 1 . . . . 1 . . . . . . 1 3 . . . . . 1 . Siphon 7 | . . . . . . . . . . . . . . . . . . . . . . . . . . 1 4 . 1 . . . 1 . Haulers 2 | . . . . . . . . . . . . . . 1 . . . . . . . . . . . . . . 1 . . . . . Repair Stations . | . . . . . . . . . . . . . . . . . . . . . . . . . . . . . . . . . . . Recycling Units . | . . . . . . . . . . . . . . . . . . . . . . . . . . . . . . . . . . . Scanalyzers 1 | . . . . . . . . . . . . . . . . . . . . . . . . . . . . . . 1 . . . . Researchers 1 | . . . . . . . . . . . . . . . . . . . . . . . . . . . . . . 1 . . . . Garrison Access 5 | . . . . . . . . . . . . . . 1 . . . . . . . . . . . 3 . . . . . 1 . . Broadcast 1 | . . . . . . . . . . . . . . . . . . . . . . . . . . 1 . . . . . . . . Reprogram 3 | . . . . . . . . . . . . . . 1 . . . . . . . . . . . 1 . . . . . 1 . . Watchers 1 | . . . . . . . . . . . . . . . . . . . . . . . . . . 1 . . . . . . . . Data Cores Recovered 1 | . . . . . . . . . . . . . . . . . . . . . . . . . . . . . . . 1 . . . Used 1 | . . . . . . . . . . . . . . . . . . . . . . . . . . . . . . . 1 . . . Hacking Detections 49 | . 5 . 1 . . . 2 3 . . . . . 11 . . . 1 1 6 . . . 1 . 1 5 . 2 3 . 3 2 2 Full Trace Events 1 | . . . . . . . . . . . . . . . . . . . . . . . . . . . . . . . . 1 . . Feedback Events . | . . . . . . . . . . . . . . . . . . . . . . . . . . . . . . . . . . . Feedback Blocked . | . . . . . . . . . . . . . . . . . . . . . . . . . . . . . . . . . . . Robot Schematics Acquired 9 | . . . . . . . . . . . . . . . . . 6 . . . . . . . . . . . 2 1 . . . . Robots Built 9 | . . . . . . . . . . . . . . . . . . . 1 . . . . . . . 4 . 4 . . . . . Matter 1345 | . . . . . . . . . . . . . . . . . . . 318 . . . . . . . 501 . 526 . . . . . Time 532 | . . . . . . . . . . . . . . . . . . . 169 . . . . . . . 177 . 186 . . . . . Total Robot Build Rating 61 | . . . . . . . . . . . . . . . . . . . 6 . . . . . . . 27 . 28 . . . . . Part Schematics Acquired 24 | . . . . . . . . . . . . . . 3 . . 9 . . . . . . . . . 6 . 1 4 . 1 . . Parts Built 11 | . . . . . . . . . . . . . . 1 . . . . . . . . . . . 2 4 . . . . . 4 . Matter 1848 | . . . . . . . . . . . . . . 234 . . . . . . . . . . . 318 964 . . . . . 332 . Time 481 | . . . . . . . . . . . . . . 117 . . . . . . . . . . . 79 239 . . . . . 46 . Total Part Build Rating 55 | . . . . . . . . . . . . . . 7 . . . . . . . . . . . 12 16 . . . . . 20 . Parts Repaired 4 | . . . . . . . . . . . . . . 1 . . . . . . . . . . . . . . 2 1 . . . . Time 264 | . . . . . . . . . . . . . . 80 . . . . . . . . . . . . . . 148 36 . . . . Parts Recycled . | . . . . . . . . . . . . . . . . . . . . . . . . . . . . . . . . . . . Recycled Matter . | . . . . . . . . . . . . . . . . . . . . . . . . . . . . . . . . . . . Retrieved Matter . | . . . . . . . . . . . . . . . . . . . . . . . . . . . . . . . . . . . Retrieved Components . | . . . . . . . . . . . . . . . . . . . . . . . . . . . . . . . . . . . Parts Scanalyzed 1 | . . . . . . . . . . . . . . . . . . . . . . . . . . . . . . . . 1 . . Part Schematics Acquired 1 | . . . . . . . . . . . . . . . . . . . . . . . . . . . . . . . . 1 . . Parts Damaged . | . . . . . . . . . . . . . . . . . . . . . . . . . . . . . . . . . . . Bothacking | -11 -10 -10 -9 -9 -9 -8 -8 -7 -7 -7 -7 -7 -6 -6 -6 -6 -6 -5 -5 -5 -5 -5 -5 -4 -4 -4 -4 -4 -3 -3 -3 -2 -1 -1 ------------ Run | Scr Mat Min Mat Min Exi Min Mat Fac Low Low Zio Dee Pro Fac Low Low Dat Pro Fac Ext Cet Arc Hub Fac Was Fac Arm Lab Res Qua Sec Res Acc Com Used RIF Installer . | . . . . . . . . . . . . . . . . . . . . . . . . . . . . . . . . . . . Robots Hacked . | . . . . . . . . . . . . . . . . . . . . . . . . . . . . . . . . . . . Non-combat . | . . . . . . . . . . . . . . . . . . . . . . . . . . . . . . . . . . . Combat . | . . . . . . . . . . . . . . . . . . . . . . . . . . . . . . . . . . . Robot Hacks Applied . | . . . . . . . . . . . . . . . . . . . . . . . . . . . . . . . . . . . Relay Couplers Released . | . . . . . . . . . . . . . . . . . . . . . . . . . . . . . . . . . . . Robots Rewired 10 | . . . . . . . . . . 2 . . . . . . . . . 8 . . . . . . . . . . . . . . Allies Hacked . | . . . . . . . . . . . . . . . . . . . . . . . . . . . . . . . . . . . Hacks Repelled 4 | . . . . . . . . . . . . . . . . . . . . . . . . . . . . . . . . 4 . . Allies | -11 -10 -10 -9 -9 -9 -8 -8 -7 -7 -7 -7 -7 -6 -6 -6 -6 -6 -5 -5 -5 -5 -5 -5 -4 -4 -4 -4 -4 -3 -3 -3 -2 -1 -1 -------- Run | Scr Mat Min Mat Min Exi Min Mat Fac Low Low Zio Dee Pro Fac Low Low Dat Pro Fac Ext Cet Arc Hub Fac Was Fac Arm Lab Res Qua Sec Res Acc Com Total Allies 42 | . . . . 4 . . . . . 2 . . . 3 . . . . 1 21 . . . . . 1 4 . 4 . . 2 . . Largest Group 6 | . . . . 3 . . . . . 2 2 . . 3 2 . . . 1 6 . . . . . 1 4 1 4 2 . 2 . . Highest-Rated Group 286 | . . . . 40 . . . . . 36 36 . . 87 58 . . . 65 286 . . . . . 44 206 65 224 112 . 128 . . Highest-Rated Ally 156 | . . . . 31 . . . . . 20 20 . . 29 29 . . . 65 156 . . . . . 44 65 65 56 56 . 64 . . Total Orders 18 | . . . . 1 . . . . . . 2 . . . . . . . . 1 . . . . . 1 2 1 5 5 . . . . STAY 8 | . . . . . . . . . . . 2 . . . . . . . . . . . . . . 1 1 1 . 3 . . . . ROAM 2 | . . . . 1 . . . . . . . . . . . . . . . 1 . . . . . . . . . . . . . . FOLLOW 3 | . . . . . . . . . . . . . . . . . . . . . . . . . . . 1 . . 2 . . . . EXPLORE 5 | . . . . . . . . . . . . . . . . . . . . . . . . . . . . . 5 . . . . . Ally Attacks 228 | . . . . 24 . . . . . 5 7 . . 13 16 . . . . 121 . . . . . . 18 . 5 14 . 5 . . Total Damage 4899 | . . . . 222 . . . . . 63 154 . . 170 215 . . . . 2702 . . . . . . 600 . 140 410 . 223 . . Kills 31 | . . . . 4 . . . . . 1 1 . . 2 1 . . . . 17 . . . . . . 3 . . 2 . . . . Allies Corrupted 4 | . . . . . . . . . . . 1 . . . . . . . . . . . . . . . . 1 . . . 2 . . Allies Melted 1 | . . . . . . . . . . . . . . . . . . . . . . . . . . . 1 . . . . . . . Intel | -11 -10 -10 -9 -9 -9 -8 -8 -7 -7 -7 -7 -7 -6 -6 -6 -6 -6 -5 -5 -5 -5 -5 -5 -4 -4 -4 -4 -4 -3 -3 -3 -2 -1 -1 ------- Run | Scr Mat Min Mat Min Exi Min Mat Fac Low Low Zio Dee Pro Fac Low Low Dat Pro Fac Ext Cet Arc Hub Fac Was Fac Arm Lab Res Qua Sec Res Acc Com Robot Analysis Total 3 | . 1 . 1 . . . . . . . . . . . . . . . . . . . . . . . 1 . . . . . . . Derelict Logs Recovered 10 | . . 1 . 1 . . . . 2 1 1 . 1 . 1 1 . 1 . . . . . . . . . . . . . . . . Drone Launches 5 | . . . . . . . . . . . . . . . . . . . . . . . . . . . . . 5 . . . . . Drone Recoveries 2 | . . . . . . . . . . . . . . . . . . . . . . . . . . . . . 2 . . . . . Exploration | -11 -10 -10 -9 -9 -9 -8 -8 -7 -7 -7 -7 -7 -6 -6 -6 -6 -6 -5 -5 -5 -5 -5 -5 -4 -4 -4 -4 -4 -3 -3 -3 -2 -1 -1 ------------- Run | Scr Mat Min Mat Min Exi Min Mat Fac Low Low Zio Dee Pro Fac Low Low Dat Pro Fac Ext Cet Arc Hub Fac Was Fac Arm Lab Res Qua Sec Res Acc Com Turns Passed 41087 | 179 1348 694 426 652 4964 303 399 1505 1422 1185 5364 2046 2377 1741 462 574 471 434 554 1584 463 420 81 50 320 551 944 364 845 1263 801 2050 1390 2861 Spaces Moved 15503 | 89 462 238 100 216 1974 195 212 496 430 400 1515 717 826 727 299 394 211 225 252 721 174 192 36 28 123 237 397 141 286 538 390 927 316 1019 Core 64 | 12 . . . . . . . . . . . . . . . . . . . . . . . . . . . . . . . . . 52 Treads 12221 | 41 359 238 100 216 1347 . 212 496 430 400 1515 717 826 17 . . . . . 565 174 192 36 28 123 237 397 141 286 538 380 927 316 967 Legs 980 | 36 103 . . . 627 195 . . . . . . . . . . 19 . . . . . . . . . . . . . . . . . Wheels 2228 | . . . . . . . . . . . . . . 710 299 394 192 225 252 156 . . . . . . . . . . . . . . Hover . | . . . . . . . . . . . . . . . . . . . . . . . . . . . . . . . . . . . Flight . | . . . . . . . . . . . . . . . . . . . . . . . . . . . . . . . . . . . Fastest Speed 50 | 50 120 260 260 260 140 140 160 160 270 270 161 270 270 115 115 130 130 145 130 130 160 160 160 160 160 160 160 160 160 160 160 145 152 50 Average Speed 200 | 128 254 260 260 260 226 140 160 225 270 270 269 270 270 145 129 144 152 145 132 159 168 160 160 160 160 160 160 160 160 160 160 151 163 153 Slowest Speed 360 | 160 360 260 260 260 360 140 260 270 270 270 270 270 270 270 130 145 360 145 145 260 260 160 160 160 160 160 160 160 160 160 160 160 260 260 Overloaded Moves . | . . . . . . . . . . . . . . . . . . . . . . . . . . . . . . . . . . . Propulsion Burnouts . | . . . . . . . . . . . . . . . . . . . . . . . . . . . . . . . . . . . Robots Hopped . | . . . . . . . . . . . . . . . . . . . . . . . . . . . . . . . . . . . Cave-ins Triggered 1 | . . . . . . . . . . . . . . . . . . . . . . . . . . . . . . . 1 . . . Teleports 4 | . . . . . . . . . . . . . . . . . . . . . . . . . . . . . 1 . 2 . 1 . Spacefolds 5 | . . . . . . . . . . . . . . . . . . . . . . . . . . . . . . . 5 . . . Exploration Rate (%) 47 | 5 70 49 15 28 92 49 25 13 61 64 88 77 85 29 54 68 80 45 11 73 62 85 6 2 91 7 42 93 19 63 36 25 10 37 Regions Visited 34 Branch Regions 22 Pre-discovered Areas 6 | . . . . 1 . . . . 1 . 3 . . . . . 1 . . . . . . . . . . . . . . . . . Known Exits Taken 12 | . . . 1 . . . . 1 . . . . . 1 1 1 . . 1 . . . . . . 1 . 1 1 . 1 1 1 . Unknown Exits Taken 20 | 1 1 1 . 1 1 1 1 . 1 1 1 1 1 . . . 1 1 . 1 1 1 1 . . . 1 . . 1 . . . . Scrap Searched 28 | . . 1 . . . 1 . . 2 3 3 . 4 . 6 4 . 4 . . . . . . . . . . . . . . . . Spaces Dug 91 | . 5 . . . 3 . . 1 . . . 5 . 5 2 . . 1 2 . . . . . 5 3 13 . . 5 27 8 6 . Terrain Destroyed 611 | . 7 19 12 . 25 1 . 4 . . . 50 3 36 2 . . 1 3 46 10 20 170 . 14 13 35 . 1 46 57 9 25 2 Melee 32 | . . . . . 1 . . . . . . 5 . 5 2 . . 1 1 . . . . . 2 . . . . . 1 8 6 . Projectile 196 | . 7 . . . 14 1 . 4 . . . . 3 2 . . . . 2 18 10 20 8 . 12 13 12 . 1 8 56 1 2 2 AOE 383 | . . 19 12 . 10 . . . . . . 45 . 29 . . . . . 28 . . 162 . . . 23 . . 38 . . 17 . Terrain Rammed 3 | . . . . . . . . . . . . . . . . . . . . . . . . . . . . 3 . . . . . . Walls Destroyed . | . . . . . . . . . . . . . . . . . . . . . . . . . . . . . . . . . . . Machines Disabled 1 | . . . . . . . . . . . . . . . . . . . . . . . . . . . . 1 . . . . . . Actions | -11 -10 -10 -9 -9 -9 -8 -8 -7 -7 -7 -7 -7 -6 -6 -6 -6 -6 -5 -5 -5 -5 -5 -5 -4 -4 -4 -4 -4 -3 -3 -3 -2 -1 -1 --------- Run | Scr Mat Min Mat Min Exi Min Mat Fac Low Low Zio Dee Pro Fac Low Low Dat Pro Fac Ext Cet Arc Hub Fac Was Fac Arm Lab Res Qua Sec Res Acc Com Total 23000 | 127 564 297 222 294 2313 207 257 744 678 464 2618 788 902 1345 361 399 310 277 408 1037 258 260 50 33 211 363 581 250 615 844 512 1359 1039 2013 Wait 4611 | . 13 28 69 70 68 1 12 105 223 3 935 2 26 538 42 . 25 12 113 163 13 38 10 . 63 83 97 62 281 156 38 234 503 585 Move 15463 | 88 461 237 99 215 1973 194 211 495 429 399 1514 716 825 726 298 393 210 224 251 720 173 191 35 28 122 236 396 140 285 537 383 926 315 1018 Hop . | . . . . . . . . . . . . . . . . . . . . . . . . . . . . . . . . . . . Pick Up 281 | 7 21 7 7 1 43 . 6 17 7 2 25 10 3 10 2 1 8 4 2 4 3 6 . . 3 5 11 5 3 13 6 10 8 21 Fast Attach 192 | 10 3 . . . 11 . 3 4 1 4 8 3 . 6 1 1 2 . 5 10 10 . . . 1 4 2 6 3 16 7 21 19 31 Attach 227 | 1 3 2 3 . 14 . 4 9 1 1 17 5 2 6 2 1 10 2 3 3 5 2 . 2 1 1 12 5 9 13 5 14 33 36 Detach 141 | 2 . . . . 6 . 3 5 1 . 7 1 . 5 3 . 6 1 1 1 1 . . . 1 2 4 4 1 14 4 5 25 38 Swap 244 | . 19 3 7 . 6 1 3 9 2 1 6 7 17 10 6 1 7 10 4 8 5 1 1 3 4 8 7 2 5 16 7 16 15 27 Drop 352 | 4 10 7 9 . 51 . 5 12 8 6 32 15 2 8 . 2 7 4 4 17 13 5 . . 1 7 5 7 5 22 9 23 10 42 Fire 1100 | 15 32 11 28 4 89 8 6 84 6 19 73 5 26 21 2 . . 19 23 44 31 17 3 . 12 16 46 16 21 55 47 48 91 182 Melee 235 | . . . . . 49 . . . . . . 8 1 15 5 . 35 1 2 . . . . . 3 . . . . 1 4 60 20 31 Ram 3 | . . . . . . . . . . . . . . . . . . . . . . . . . . . . 3 . . . . . . Kick 4 | . 1 . . . . 3 . . . . . . . . . . . . . . . . . . . . . . . . . . . . Crush 51 | . 1 2 . 4 3 . 4 4 . . . 16 . . . . . . . 2 4 . 1 . . 1 1 . 2 1 1 2 . 2 Escape Stasis 19 | . . . . . . . . . . . . . . . . . . . . 18 . . . . . . . . . . 1 . . . Rewire 77 | . . . . . . . . . . 29 1 . . . . . . . . 47 . . . . . . . . . . . . . . Trap . | . . . . . . . . . . . . . . . . . . . . . . . . . . . . . . . . . . . Miscellaneous . | . . . . . . . . . . . . . . . . . . . . . . . . . . . . . . . . . . . Route ------- -11/Scrapyard -10/Materials (discovered 5 exits: *Mat x3 / *Min x2) -10/Mines -9/Materials (discovered 4 exits: *Min x2 / Sto x2) -9/Mines (discovered 3 exits: *Mat x2 / *Exi) -9/Exiles (discovered 2 exits: [*Min x2]) -8/Mines -8/Materials -7/Factory (discovered 2 exits: *Low x2) -7/Lower Caves -7/Lower Caves (discovered 2 exits: *Fac / *Zio) -7/Zion (discovered 2 exits: [*Dee] / [*Pro]) -7/Deep Caves -6/Proximity Caves -6/Factory (discovered 3 exits: *Fac / *Low x2) -6/Lower Caves -6/Lower Caves (discovered 2 exits: Fac / *Dat) -6/Data Miner -5/Proximity Caves -5/Factory -5/Extension (discovered 2 exits: *Fac / [*Cet]) -5/Cetus (discovered 2 exits: *Fac / [*Arc]) -5/Archives (discovered 3 exits: *Fac / *Hub x2) -5/Hub_04(d) -4/Factory (discovered 3 exits: Upp x2 / Arm) -4/Waste -4/Factory (discovered 6 exits: Res x4 / *Upp / *Arm) -4/Armory (discovered 3 exits: Res x2 / [*Lab]) -4/Lab -3/Research (discovered 5 exits: Res x3 / *Qua x2) -3/Quarantine -3/Section 7 -2/Research (discovered 5 exits: *Acc x3 / Tes x2) -1/Access -1/Command To Fleet Rendezvous History --------- Turn | Location | Event 2 | -11/Scrapyard | Discovered new exit (range 16) 180 | -11/Scrapyard | Entered Materials 328 | -10/Materials | Build established: Mutant 330 | -10/Materials | Discovered new exit (range 8) 563 | -10/Materials | Central database locked down 622 | -10/Materials | Discovered new exit (range 12) 849 | -10/Materials | Discovered new exit (range 11) 871 | -10/Materials | Discovered new exit (range 14) 1110 | -10/Materials | Discovered new exit (range 8) 1528 | -10/Materials | Entered Mines 1771 | -10/Mines | Discovered new exit (range 13) 1890 | -10/Mines | Learned Materials emergency access door positions 1972 | -10/Mines | Met a Derelict shopkeep closing up shop 2222 | -10/Mines | Entered Materials 2222 | -9/Materials | Evolved 2 slots: Weapon x2 2532 | -9/Materials | Build established: Gunner 2546 | -9/Materials | Identified exit to Mines 2546 | -9/Materials | Identified exit to Storage 2648 | -9/Materials | Entered Mines 2649 | -9/Mines | Assembled infested the area 2664 | -9/Mines | Assisted by bots powering up and referring to "LRC-V3" 2731 | -9/Mines | Discovered new exit (range 8) 2908 | -9/Mines | Discovered new exit (range 14) 2913 | -9/Mines | Learned location of Zion (-7) 2929 | -9/Mines | Received a Mining Laser from a helpful Derelict 3287 | -9/Mines | Deemed a non-threat by the Exiles lab entrance 3289 | -9/Mines | Discovered new exit (range 5) 3300 | -9/Mines | Entered Exiles 3342 | -9/Exiles | Discovered new exit (range 15) 3365 | -9/Exiles | Met 8R-AWN 3407 | -9/Exiles | Met EX-HEX 3550 | -9/Exiles | Met EX-DEC 3915 | -9/Exiles | Met EX-BIN 3938 | -9/Exiles | Aligned with FarCom system 3940 | -9/Exiles | Given EX-Vault access code 3983 | -9/Exiles | Opened EX-Vault 4000 | -9/Exiles | Found AWS/Autocannon 4007 | -9/Exiles | Found YOLO Cannon 4058 | -9/Exiles | Warned to stay clear of 0b10 Research branches 4107 | -9/Exiles | Build established: Mutant 4533 | -9/Exiles | Discovered new exit (range 10) 4828 | -9/Exiles | Attacked by the Exiles 5051 | -9/Exiles | Destroyed 8R-AWN 5068 | -9/Exiles | Found Corrupted Prototype Ballistic Gun 5068 | -9/Exiles | Identified 8R-AWN's Boregun 5471 | -9/Exiles | Destroyed EX-BIN 5619 | -9/Exiles | Destroyed EX-HEX 5647 | -9/Exiles | Destroyed EX-DEC 5762 | -9/Exiles | Found Deploy-a-Sentry 6559 | -9/Exiles | Build established: Scavenger-Mutant 7621 | -9/Exiles | Build established: Scavenger-Tank 7938 | -9/Exiles | Build established: Scavenger-Mutant 8264 | -9/Exiles | Entered Mines 8346 | -8/Mines | Core integrity fell below 50% 8553 | -8/Mines | Discovered new exit (range 9) 8567 | -8/Mines | Entered Materials 8567 | -8/Materials | Evolved 2 slots: Propulsion x1, Utility x1 8648 | -8/Materials | Build established: Scavenger-Tank 8924 | -8/Materials | Discovered new exit (range 16) 8966 | -8/Materials | Entered Factory 8966 | -7/Factory | Evolved 2 slots: Utility x2 9083 | -7/Factory | Identified exit to Lower Caves 10471 | -7/Factory | Entered Lower Caves 10864 | -7/Lower Caves | Build established: Gunner 11589 | -7/Lower Caves | Attracted the attention of an 0b10 checkpoint 11760 | -7/Lower Caves | Discovered new exit (range 9) 11792 | -7/Lower Caves | Learned 4 Factory zone layouts 11893 | -7/Lower Caves | Entered another Lower Caves area 11983 | -7/Lower Caves | Discovered new exit (range 7) 12114 | -7/Lower Caves | Learned Factory stockpile data 12264 | -7/Lower Caves | Attracted the attention of an 0b10 outpost 12293 | -7/Lower Caves | Build established: Scavenger-Gunner 12338 | -7/Lower Caves | Destroyed 11 combat bots 12460 | -7/Lower Caves | Encountered a Warlord checkpoint 12628 | -7/Lower Caves | Build established: Scavenger-Tank 13045 | -7/Lower Caves | Discovered new exit (range 9) 13055 | -7/Lower Caves | Build established: Scavenger-Gunner 13078 | -7/Lower Caves | Entered Zion 13078 | -7/Zion | Accompanied by 2 allies 13105 | -7/Zion | Learned Factory interactive machine intel 13200 | -7/Zion | System corruption cleaned by Quarantine Array 13478 | -7/Zion | Discovered new exit (range 15) 14227 | -7/Zion | Found Prototype Energy Gun 14227 | -7/Zion | Identified Storm Laser 14417 | -7/Zion | Learned location of Quarantine (-3) 14495 | -7/Zion | Build established: Gunner 14701 | -7/Zion | Learned location of Armory (-4) 15017 | -7/Zion | Found CR-A16's Pointy Stick 16388 | -7/Zion | Attacked by Zionites 16717 | -7/Zion | Build established: Tank 17450 | -7/Zion | Build established: Gunner 17567 | -7/Zion | 99-TNT came to Zion's defense 17584 | -7/Zion | Destroyed 99-TNT 17590 | -7/Zion | Found Prototype Launcher 17590 | -7/Zion | Identified 99-TNT's Nukerbomber 17597 | -7/Zion | Found Prototype Device 17597 | -7/Zion | Identified Exp. Shock Absorption System 17822 | -7/Zion | Destroyed Imprinter 17853 | -7/Zion | Extracted access codes from Imprinter's data core 17873 | -7/Zion | Build established: Scavenger-Gunner 18375 | -7/Zion | Opened final containment barrier to the Deep Caves 18437 | -7/Zion | Discovered new exit (range 3) 18437 | -7/Zion | Saw the warning signs outside the Deep Caves entrance 18442 | -7/Zion | Entered Deep Caves 19274 | -7/Deep Caves | Z-Facility disabled 19369 | -7/Deep Caves | Found Prototype Protection 19381 | -7/Deep Caves | Found Prototype Protection 19381 | -7/Deep Caves | Identified Zio. Heavy Carapace 19402 | -7/Deep Caves | Found Zio. Heavy Carapace 19450 | -7/Deep Caves | Found Zio. Heavy Carapace 19520 | -7/Deep Caves | Build established: Scavenger-Mutant 19929 | -7/Deep Caves | Discovered new exit (range 6) 20131 | -7/Deep Caves | Found Surveybot 24 Scanner 20135 | -7/Deep Caves | Found Surveybot 24 Chip 20488 | -7/Deep Caves | Entered Proximity Caves 20657 | -6/Proximity Caves | Learned Factory garrison access intel 20774 | -6/Proximity Caves | Build established: Scavenger-Tank 22013 | -6/Proximity Caves | Found Alien Artifact 22545 | -6/Proximity Caves | Spotted B-75 Beast 22593 | -6/Proximity Caves | Destroyed B-75 Beast 22808 | -6/Proximity Caves | Discovered new exit (range 10) 22865 | -6/Proximity Caves | Entered Factory 22865 | -6/Factory | Evolved 2 slots: Utility x1, Weapon x1 22868 | -6/Factory | Loaded intel: 46 interactive machine locations 22869 | -6/Factory | Loaded intel: 4 garrison access locations 22903 | -6/Factory | Build established: Scavenger-Gunner 23190 | -6/Factory | Repaired Exp. Weapon Shielding? 23567 | -6/Factory | Build established: Scavenger-Tank 23894 | -6/Factory | Identified exit to Lower Caves 23917 | -6/Factory | Discovered new exit (range 15) 24106 | -6/Factory | Build established: Scavenger-Skirmisher 24191 | -6/Factory | Identified Zio. Weapon Casing 24207 | -6/Factory | Fabricated Adv. Actuator Array? 24265 | -6/Factory | Local fabrication network quarantined 24606 | -6/Factory | Entered Lower Caves 24606 | -6/Lower Caves | Accompanied by 2 allies 24884 | -6/Lower Caves | Learned Factory interactive machine intel 24923 | -6/Lower Caves | Encountered a Warlord checkpoint 25045 | -6/Lower Caves | Discovered new exit (range 19) 25067 | -6/Lower Caves | Identified exit to Lower Caves 25068 | -6/Lower Caves | Ambushed by wild Derelicts 25068 | -6/Lower Caves | Entered another Lower Caves area 25077 | -6/Lower Caves | Encountered a Warlord checkpoint 25082 | -6/Lower Caves | Discovered new exit (range 18) 25095 | -6/Lower Caves | Learned Factory machine intel 25569 | -6/Lower Caves | Discovered new exit (range 23) 25641 | -6/Lower Caves | Identified exit to Data Miner 25642 | -6/Lower Caves | Entered Data Miner 25642 | -6/Data Miner | Discovered new exit (range 6) 25670 | -6/Data Miner | Met Data Miner 25695 | -6/Data Miner | Learned location of Section 7 (-3) 25695 | -6/Data Miner | Acquired the access code to Warlord's prototype stash 25722 | -6/Data Miner | Received God Mode back door access code from Data Miner 25767 | -6/Data Miner | Destroyed Data Miner 25772 | -6/Data Miner | Data Conduit disabled 26002 | -6/Data Miner | Found Prototype Hackware 26004 | -6/Data Miner | Found Prototype Hackware 26007 | -6/Data Miner | Found Prototype Hackware 26113 | -6/Data Miner | Entered Proximity Caves 26216 | -5/Proximity Caves | Learned 8 Factory zone layouts 26392 | -5/Proximity Caves | Attracted the attention of an 0b10 checkpoint 26504 | -5/Proximity Caves | Discovered new exit (range 24) 26547 | -5/Proximity Caves | Entered Factory 26547 | -5/Factory | Evolved 2 slots: Propulsion x1, Utility x1 26548 | -5/Factory | Identified exit to Extension 26549 | -5/Factory | Loaded intel: 276 machine locations 26550 | -5/Factory | Loaded intel: 48 interactive machine locations 26771 | -5/Factory | Fabricated I-47 Archangel? 27063 | -5/Factory | Build established: Scavenger-Tank 27101 | -5/Factory | Entered Extension 27101 | -5/Extension | Accompanied by 1 ally 27249 | -5/Extension | Identified Quantum Router 27269 | -5/Extension | Rescued a captive Derelict 27270 | -5/Extension | Rescued a captive Derelict 27289 | -5/Extension | Rescued a captive Derelict 27293 | -5/Extension | Rescued a captive Derelict 27305 | -5/Extension | Rescued a captive Derelict 27306 | -5/Extension | Rescued a captive Derelict 28068 | -5/Extension | Spotted B-75 Beast 28077 | -5/Extension | Destroyed B-75 Beast 28114 | -5/Extension | Spotted B-75 Beast 28126 | -5/Extension | Disrupted transfer network 28130 | -5/Extension | Allies destroyed B-75 Beast 28193 | -5/Extension | Rescued a captive Derelict 28322 | -5/Extension | Rescued a captive Derelict 28326 | -5/Extension | Rescued a captive Derelict 28328 | -5/Extension | Rescued a captive Derelict 28360 | -5/Extension | Rescued A7 28375 | -5/Extension | Rescued a captive Derelict 28376 | -5/Extension | Rescued a captive Derelict 28567 | -5/Extension | Energy Cycler disabled 28567 | -5/Extension | Destroyed A7 28567 | -5/Extension | Rescued a captive Derelict 28569 | -5/Extension | Rescued a captive Derelict 28572 | -5/Extension | Extracted ID and sensor layout for unrecognized location from A7's data core 28585 | -5/Extension | Found Prototype Protection 28585 | -5/Extension | Identified Med. Regenerative Plating 28653 | -5/Extension | Disrupted transfer network 28672 | -5/Extension | Discovered new exit (range 10) 28674 | -5/Extension | Discovered new exit (range 6) 28685 | -5/Extension | Entered Cetus 28707 | -5/Cetus | Spotted Cetus Guard 28707 | -5/Cetus | Spotted Cetus Guard 28710 | -5/Cetus | Spotted Cetus Guard 28715 | -5/Cetus | Destroyed Cetus Guard 28727 | -5/Cetus | Destroyed Cetus Guard 28735 | -5/Cetus | Destroyed Cetus Guard 28736 | -5/Cetus | Spotted Cetus Guard 28750 | -5/Cetus | Destroyed Cetus Guard 28842 | -5/Cetus | Destroyed 7 combat bots 28916 | -5/Cetus | Discovered new exit (range 16) 28947 | -5/Cetus | Spotted Cetus Guard 28947 | -5/Cetus | Spotted Cetus Guard 28948 | -5/Cetus | Destroyed Cetus Guard 28950 | -5/Cetus | Spotted Cetus Guard 28959 | -5/Cetus | Spotted Cetus Guard 28959 | -5/Cetus | Destroyed Cetus Guard 28963 | -5/Cetus | Destroyed Cetus Guard 28967 | -5/Cetus | Destroyed Cetus Guard 28985 | -5/Cetus | Discovered new exit (range 15) 28993 | -5/Cetus | Met Revision 17 29148 | -5/Cetus | Entered Archives 29300 | -5/Archives | Discovered new exit (range 16) 29324 | -5/Archives | Discovered new exit (range 16) 29336 | -5/Archives | Discovered new exit (range 16) 29568 | -5/Archives | Entered Hub_04(d) 29568 | -5/Hub_04(d) | Discovered new exit (range 11) 29640 | -5/Hub_04(d) | Network Hub disabled 29649 | -5/Hub_04(d) | Entered Factory 29649 | -4/Factory | Evolved 2 slots: Utility x2 29667 | -4/Factory | Identified exit to Upper Caves 29667 | -4/Factory | Identified exit to Armory 29699 | -4/Factory | Sucked down chute 29699 | -4/Factory | Entered Waste 29740 | -4/Waste | Spotted C-40 Crusher 29743 | -4/Waste | Spotted C-40 Crusher 29745 | -4/Waste | Destroyed C-40 Crusher 29782 | -4/Waste | Destroyed C-40 Crusher 29804 | -4/Waste | Spotted C-40 Crusher 29822 | -4/Waste | Destroyed C-40 Crusher 29826 | -4/Waste | Spotted C-40 Crusher 29826 | -4/Waste | Spotted C-40 Crusher 29830 | -4/Waste | Destroyed C-40 Crusher 29837 | -4/Waste | Destroyed C-40 Crusher 29945 | -4/Waste | Destroyed C-40 Crusher 29977 | -4/Waste | Discovered new exit (range 23) 30019 | -4/Waste | Entered Factory 30094 | -4/Factory | Build established: Scavenger-Skirmisher 30097 | -4/Factory | Identified exit to Research 30144 | -4/Factory | Fabricated Adv. Hacking Suite (x1) 30170 | -4/Factory | Fabricated Adv. Hacking Suite (x1) 30367 | -4/Factory | Discovered exit to Upper Caves (range 8) 30426 | -4/Factory | Discovered exit to Armory (range 20) 30570 | -4/Factory | Entered Armory 30618 | -4/Armory | Identified Ghost Barrier 30716 | -4/Armory | Fabricated I-47 Archangel? 30805 | -4/Armory | Identified System Mapper 30852 | -4/Armory | Fabricated G-67 Veteran? 30978 | -4/Armory | Build established: Wizard-Gunner 31127 | -4/Armory | Central database locked down 31390 | -4/Armory | Discovered new exit (range 18) 31410 | -4/Armory | Fabricated Exp. Utility Shielding (x1) 31435 | -4/Armory | Fabricated Exp. Utility Shielding (x1) 31447 | -4/Armory | Fabricated Lrn. Tractor Beam (x2) 31458 | -4/Armory | Local fabrication network quarantined 31514 | -4/Armory | Entered Lab 31514 | -4/Lab | Accompanied by 1 ally 31514 | -4/Lab | Discovered exit to Research (range 9) 31532 | -4/Lab | Hidden lab's door opened automatically 31532 | -4/Lab | Sensor layout match revealed 31533 | -4/Lab | Gained access to the hidden lab's interior 31567 | -4/Lab | Found Alien Artifact 31586 | -4/Lab | Found Alien Artifact 31586 | -4/Lab | Identified Integrated Reactor 31586 | -4/Lab | Installed Integrated Reactor, increased core energy generation (+10) 31605 | -4/Lab | Found Alien Artifact 31634 | -4/Lab | Found Alien Artifact 31654 | -4/Lab | Detected by scanners 31688 | -4/Lab | Confronted by A5 31710 | -4/Lab | System corruption reached 10% 31744 | -4/Lab | Found Prototype Energy Cannon 31744 | -4/Lab | Identified Warp Cannon 31754 | -4/Lab | Destroyed A5 31768 | -4/Lab | Found Med. Regenerative Plating 31773 | -4/Lab | Found Quantum Router 31783 | -4/Lab | Found Prototype Energy Gun 31783 | -4/Lab | Identified Tachyon Dispersion Ray 31876 | -4/Lab | Identified Core Reset Matrix 31876 | -4/Lab | Identified Transdimensional Reconstructor 31876 | -4/Lab | Identified Core Regenerator 31876 | -4/Lab | Used Core Reset Matrix 31878 | -4/Lab | Entered Research 31878 | -3/Research | Evolved 2 slots: Utility x2 32088 | -3/Research | Repaired Centrium Heavy Treads 32126 | -3/Research | Warped through subspace 32187 | -3/Research | Identified exit to Quarantine 32187 | -3/Research | Identified exit to Research 32426 | -3/Research | Repaired Exp. Utility Shielding 32624 | -3/Research | Fabricated H-77 Assassin (x2) 32681 | -3/Research | Local fabrication network quarantined 32717 | -3/Research | Fabricated H-77 Assassin? 32723 | -3/Research | Entered Quarantine 32723 | -3/Quarantine | Accompanied by 2 allies 32724 | -3/Quarantine | Detected hypermatrix surge 32724 | -3/Quarantine | Sensed 14 artifacts in vicinity 32742 | -3/Quarantine | Found Core Cannon 32834 | -3/Quarantine | Repaired Centrium Heavy Treads 33071 | -3/Quarantine | Build established: Wizard-Mutant 33323 | -3/Quarantine | Found Phase Redirector 33354 | -3/Quarantine | Found Hpw. Transdimensional Reconstructor 33367 | -3/Quarantine | Found Transdimensional Reconstructor 33369 | -3/Quarantine | Found Hpw. Transdimensional Reconstructor 33372 | -3/Quarantine | Found Transdimensional Reconstructor 33403 | -3/Quarantine | Intercept squad dispatched 33416 | -3/Quarantine | Spotted Tracker 33421 | -3/Quarantine | Destroyed Tracker 33444 | -3/Quarantine | Spotted Combat Programmer 33458 | -3/Quarantine | Destroyed Combat Programmer 33469 | -3/Quarantine | Found Phase Armor 33517 | -3/Quarantine | Scanned by Researcher 33637 | -3/Quarantine | Found Matter Drive 33664 | -3/Quarantine | Found Subatomic Replicator 33711 | -3/Quarantine | Found Sigix Broadsword 33768 | -3/Quarantine | Found Core Stripper 33837 | -3/Quarantine | Spotted Fortress 33847 | -3/Quarantine | Destroyed Fortress 33860 | -3/Quarantine | Found Prototype Device 33860 | -3/Quarantine | Identified Thermal Barrier 33869 | -3/Quarantine | Found Prototype Device 33869 | -3/Quarantine | Identified Exp. Force Field 33873 | -3/Quarantine | Found Prototype Device 33873 | -3/Quarantine | Identified EM Dispersion Field 33980 | -3/Quarantine | Discovered new exit (range 5) 33986 | -3/Quarantine | Entered Section 7 33987 | -3/Section 7 | Sensed 18 artifacts in vicinity 33987 | -3/Section 7 | Spotted S7 Guard 34080 | -3/Section 7 | Destroyed S7 Guard 34088 | -3/Section 7 | Found Core Regenerator 34194 | -3/Section 7 | Warped through subspace 34209 | -3/Section 7 | Found Spacefold Activator 34284 | -3/Section 7 | Spotted Executioner 34284 | -3/Section 7 | Spotted Executioner 34308 | -3/Section 7 | Destroyed Executioner 34314 | -3/Section 7 | Destroyed Executioner 34330 | -3/Section 7 | Found Prototype Processor 34331 | -3/Section 7 | Identified Exp. Core Analyzer 34614 | -3/Section 7 | Found LRC Matter Compressor 34614 | -3/Section 7 | Installed LRC Matter Compressor, increased matter storage capacity (+125) 34705 | -3/Section 7 | Crushed by falling debris 34706 | -3/Section 7 | Core integrity fell below 50% 34707 | -3/Section 7 | Warped through subspace 34779 | -3/Section 7 | Found Integrity Redistributor 34787 | -3/Section 7 | Entered Research 34787 | -2/Research | Evolved 2 slots: Power x1, Weapon x1 35273 | -2/Research | Identified exit to Testing 35273 | -2/Research | Identified exit to Access 35310 | -2/Research | Intercept squad dispatched 35328 | -2/Research | Spotted Tracker 35349 | -2/Research | Spotted Tracker 35350 | -2/Research | Destroyed Tracker 35359 | -2/Research | Garrison activated, responded to threat 35359 | -2/Research | Destroyed Tracker 35363 | -2/Research | Spotted Combat Programmer 35372 | -2/Research | Destroyed Combat Programmer 35391 | -2/Research | Spotted Combat Programmer 35423 | -2/Research | Destroyed Combat Programmer 35443 | -2/Research | Found Prototype Processor 35704 | -2/Research | Spotted B-90 Cyclops 35976 | -2/Research | Build established: Wizard-Tank 36715 | -2/Research | Found Prototype Device 36715 | -2/Research | Identified Exp. Transmission Jammer 36741 | -2/Research | Intercept squad dispatched 36753 | -2/Research | Spotted Tracker 36753 | -2/Research | Spotted Tracker 36754 | -2/Research | Spotted Tracker 36761 | -2/Research | Destroyed Tracker 36778 | -2/Research | Destroyed Tracker 36784 | -2/Research | Spotted Combat Programmer 36784 | -2/Research | Spotted Combat Programmer 36785 | -2/Research | System corruption reached 10% 36786 | -2/Research | Destroyed Tracker 36789 | -2/Research | Spotted Combat Programmer 36837 | -2/Research | Entered Access 36837 | -1/Access | Evolved 2 slots: Utility x2 36857 | -1/Access | Lost 6 parts (1p2u3w) 36896 | -1/Access | Identified exit to Command 36923 | -1/Access | Used Subatomic Replicator to replicate Integrity Redistributor 37056 | -1/Access | Destroyed 8 combat bots 37109 | -1/Access | Fabricated Hvy. Flak Cannon (x2) 37124 | -1/Access | Fabricated Hvy. Flak Cannon (x2) 37165 | -1/Access | Warped through subspace 37195 | -1/Access | Lost 9 parts (2p1n2u4w) 37454 | -1/Access | Build established: Wizard-Mutant 37812 | -1/Access | Identified Exp. Targeting Computer 37840 | -1/Access | Used Integrity Redistributor, redistributed integrity from core (-213) 37893 | -1/Access | Lost 3 parts (1p1n1w) 38225 | -1/Access | Used Core Regenerator, restored core integrity (+400) 38227 | -1/Access | Entered Command 38423 | -1/Command | Build established: Wizard-Tank 38622 | -1/Command | System corruption reached 10% 38727 | -1/Command | First assault squad dispatched 38900 | -1/Command | Build established: Wizard-Mutant 39387 | -1/Command | Spotted M Guard 39387 | -1/Command | Spotted M Guard 39387 | -1/Command | Spotted Combat Programmer 39388 | -1/Command | Spotted Combat Programmer 39396 | -1/Command | Destroyed M Guard 39407 | -1/Command | Destroyed M Guard 39412 | -1/Command | System corruption reached 30% 39421 | -1/Command | Destroyed Combat Programmer 39430 | -1/Command | Destroyed Combat Programmer 39430 | -1/Command | All MAIN.C guards destroyed 39459 | -1/Command | Found Corrupted Prototype Device 39459 | -1/Command | Identified AEGIS Remote Shield 39465 | -1/Command | Found Corrupted Prototype Reactor 39465 | -1/Command | Identified Zero-point Reactor 39473 | -1/Command | Found Corrupted Zero-point Reactor 39484 | -1/Command | Found Corrupted AEGIS Remote Shield 39488 | -1/Command | Found Corrupted Prototype Protection 39488 | -1/Command | Identified Hvy. Regenerative Plating 39494 | -1/Command | Used Core Regenerator, restored core integrity (+224) 39499 | -1/Command | Found Corrupted Hvy. Regenerative Plating 39598 | -1/Command | Met MAIN.C 39603 | -1/Command | Used Integrity Redistributor, redistributed integrity from core (-139) 39648 | -1/Command | Destroyed MAIN.C Shell 39650 | -1/Command | MAIN.C activated Command garrisons 39712 | -1/Command | 0b10 Conduit disabled 39712 | -1/Command | Destroyed MAIN.C 39750 | -1/Command | Lost 4 parts (2u2w) 39922 | -1/Command | Phase Generator disabled 39960 | -1/Command | Spotted B-99 Colossus 39971 | -1/Command | Destroyed B-99 Colossus 40276 | -1/Command | Build established: Scavenger-Tank 40333 | -1/Command | Found Prototype Protection 40333 | -1/Command | Identified SHELL Armor 40358 | -1/Command | Found Prototype Device 40358 | -1/Command | Identified Exp. ECM Suite 40363 | -1/Command | Found Prototype Device 40363 | -1/Command | Identified Exp. Hardlight Generator 40376 | -1/Command | Found Prototype Processor 40376 | -1/Command | Identified Spectral Analyzer 40515 | -1/Command | Discovered new exit (range 12) 41005 | -1/Command | Build established: Scavenger-Mutant 41088 | *** | Heading to fleet! Last Messages --------------- 41048_ System corrupted: Substantial component data lost. 41053_ Dropped Enh. Armored Heavy Treads. 41057_ Acquired Biometal Heavy Treads. 41059_ Dropped Hcp. Storage Unit. 41059_ Hvy. Flak Cannon crushed and broken. 41059_ Exp. Energy Well crushed and broken. 41059_ Corrupted Exp. Energy Well crushed and broken. 41060_ Dropped SHELL Armor. 41060_ SHELL Armor crushed and broken. 41060_ Dropped Hvy. Regenerative Plating. 41060_ Hvy. Regenerative Plating crushed and broken. 41061_ Dropped Hvy. Flak Cannon. 41061_ Hvy. Flak Cannon crushed and broken. 41061_ Dropped Graviton Cannon. 41061_ Graviton Cannon crushed and broken. 41062_ Dropped Hvy. Flak Cannon. 41062_ Hvy. Flak Cannon crushed and broken. 41062_ Dropped AEGIS Remote Shield. 41062_ AEGIS Remote Shield crushed and broken. 41075_ Acquired 8 matter. Map ----- +----------------------------------------------------+ | ?????????????????????????????????????????????????? | | ?????????????????????????????????????????????????? | | ?????????????????????????????????????????????????? | | ?????????????????????????????????????????????????? | | ?????????????????????????????????????????????????? | | ?????????????????????????????????????????????????? | | ?????????????????????????????????????????????????? | | #######??????????????????????????????????????????? | | #??????????????????????????????????????????? | | #??????????????????????????????????????????? | | #??????????????????????????????????????????? | | #??????????????????????????????????????????? | | #??????????????????????????????????????????? | | #??????????????????????????????????????????? | | #??????????????????????????????????????????? | | #######????????????????????????##########????????? | | ???????????????????????????????# #????????? | | ???????????????????????????????# #????????? | | ???????????????????????????????#"" #????????? | | ???????????????????????????????#"T #????????? | | ??#######??????????????????????#"" #????????? | | ??#"""""""?????????????????????# =#????????? | | ###"""Y"""#????????????????????# #????????? | | # ????????????#####???# #????????? | | # ######?????# #???# #????????? | | # # ####### @ #???#+###+############? | | # + #???# #? | | # " "" # #???#### T#? | | # "R"" # ###########??????# %"""!"""##? | | # """" ?## ###?????###???????# ""!!"""##? | | ###########??# #"#######"######### "[[[!=!=#? | | ############ " ]]**!!#? | | + """T""" "!!!*==!#? | | # """ """ ! "!!]**==#? | | # !%= "########? | | + = "" "#???????? | | ! ## """" "#???????? | | ## """" "#???????? | | ## === "" "" "#???????? | | ## ! ! """" !%"#???????? | | + =!! """" ##???????? | | # % % %! "#???????? | | ##"###+#+## ##???????? | | ##^ ! ############## % #?????"""? | | ##% % #??????????# = #????""""? | | #### #??????????# %% #????" " | | ???# ! #?????????#### % =% #????"" " | | ???# ^ #????????? # % #???#"" " | | #### / #????????? = %! % % ##??# " " | | + #?????????? " % % "#??# " | +----------------------------------------------------+ Best States ------------- Heat Dissipation 128 Coolant Potential 65 Energy Generation 71 Energy Capacity 1580 Matter Stores 1425 Matter Capacity 1425 Sight Range 24 Robot Scan Range 19 Terrain Scan Range 24 Terrain Scan Density 2010 ECM Strength 3 Additional Mass Support 9 Armor Coverage 2400 Resistance: KI 30 Resistance: EX 75 Resistance: EM 75 Utility Shielding 90 Weapon Shielding 100 Evasion (%) 55 Targeting Accuracy 12 Melee Accuracy 8 Target Analysis 8 Armor Integrity Analysis 40 Recoil Reduction 10 Matter Filtering 30 Particle Charging 15 Kinecelleration 30 Offensive Hacking 58 Defensive Hacking 92 Item Schematics ----------------- Imp. Stasis Canceller | -3/Research | Hacked Centrium Leg | -3/Quarantine | Hacked Biometal Heavy Treads | -3/Quarantine | Hacked Exp. Actuator Array | -3/Quarantine | Hacked Hvy. Flak Cannon | -3/Quarantine | Hacked Exp. Utility Shielding | -2/Research | Scanalyzed Robot Schematics ------------------ H-77 Assassin | -3/Research | Hacked R-10 Processor | -3/Research | Hacked E-15 Imp | -3/Quarantine | Hacked Fabricated ------------ Adv. Actuator Array | x1 | -6/Factory I-47 Archangel | x1 | -5/Factory Adv. Hacking Suite | x1 | -4/Factory Adv. Hacking Suite | x1 | -4/Factory I-47 Archangel | x1 | -4/Armory G-67 Veteran | x3 | -4/Armory | Preloaded Exp. Utility Shielding | x1 | -4/Armory Exp. Utility Shielding | x1 | -4/Armory Lrn. Tractor Beam | x2 | -4/Armory H-77 Assassin | x2 | -3/Research H-77 Assassin | x2 | -3/Research Hvy. Flak Cannon | x2 | -1/Access Hvy. Flak Cannon | x2 | -1/Access Alien Tech Used ----------------- Integrated Reactor Core Reset Matrix Transdimensional Reconstructor Phase Armor Sigix Broadsword Phase Redirector Core Stripper High-powered Transdimensional Reconstructor Spacefold Activator Core Cannon LRC Matter Compressor Matter Drive Subatomic Replicator Integrity Redistributor Core Regenerator Achievements -------------- None Challenges ------------ None Game ------ Seed DeuteriumProtonAccelerator Manual? 0 Play Time 04:15:51 Cumulative 1901.1 hours Start 2021.05.23 @ 16:14:23 End 2021.05.23 @ 21:09:59 Sessions 1 Manual Loads 0 Difficulty Rogue Special Mode None Game No. 2550 Rogue 2542 Adventurer 0 Explorer 8 Win Type 2 Total 201 Types 42/27/80/3/3/5/38/2/1 Lore% 99 Gallery% 99 Achievement% 100 Wizard Run 0 Options --------- ASCII 0 Keyboard 1 Movement Numpad Keybinds 1 Fullscreen 1 Font 18/SmallcapsGlow Map View 76x50 Tactical HUD 1 Map Filters NONE Filters NONE Steam 1 RUN: 9dccc154-4df2-4fd0-9838-b0de99e7f801